{"text_format":"1","workbook":"xlsx","n_sheets":22,"sheets":["Cover Page","Facility Info","Operational Data","Operational Summary","Perf. Form 1","Energy Form 1","Permit Compliance","Improvements","Public Liasion","CO2 N2O","Residues","Water","Air (periodic)","Air (CEMS)","HCl","SO2","NOx","TOC","Particulates","CO 95% 10 min","NH3","Template changes log"],"not_rendered":{"charts":7,"images":4,"macros":1,"external_links":0,"defined_names":1,"comments":0,"pivot_tables":0},"unopened":[],"bounds":{"document_bytes":16777216,"sheet_cells":100000,"rows_first":2000,"rows_last":500,"rows_between":2000,"halvings":0,"cell_chars":16384,"cell_head_chars":4096},"cells_cut":0,"cells_raw":0,"read":"whole","date_system":"1900"}

{"sheet":"Cover Page","index":0,"n_rows":53,"n_cols":11,"rows_kept":53,"cut":false,"hidden":false,"merged":[[0,3,5,6],[7,1,23,8],[13,10,18,12],[28,1,28,8],[30,1,30,8],[32,1,32,8],[34,1,34,8],[48,2,48,3],[52,2,52,3],[36,1,36,8],[40,2,40,8],[42,2,42,4],[44,2,44,4],[46,2,46,3],[46,6,46,8],[48,6,48,8]]}
[]
[null,null,null,null,null,null,null,null,null,null,"Template version 25.1a (for incinerators) - 27/11/25"]
[]
[null,null,null,null,null,null,null,null,null,null,"Note that there is another version of this template available for co-incinerators"]
[]
[]
[]
[]
[]
[]
[]
[]
[null,null,null,null,null,null,null,null,null,null,"Notes:"]
[null,null,null,null,null,null,null,null,null,null,"This template may require adjustments by individual operators to meet specific reporting requirements as defined in the site Permit(s)"]
[]
[]
[]
[]
[]
[]
[]
[]
[]
[]
[]
[]
[]
[]
[null,"Annual Performance Report 2025"]
[]
[null,"Permit EPR/BV8067IL"]
[]
[null,"Newhaven Energy Recovery Facility "]
[]
[null,"Newhaven ERF"]
[]
[null,"Veolia"]
[]
[null,"Year:",2025.0]
[]
[null,"Address:","North Quay Road, East Sussex, BN9 0AB "]
[]
[null,"Tel: ","08453 550 550"]
[]
[null,"Email: "]
[]
[null,"Prepared by:","N Gronn",null,null,"Position:","Environmental Technician"]
[]
[null,"Approved by:","R Williams",null,null,"Position:","Facility Manager"]
[]
[null,"Version:",1.0]
[]
[null,"Issue Date:","2025-01-01"]

{"sheet":"Facility Info","index":1,"n_rows":22,"n_cols":11,"rows_kept":22,"cut":false,"hidden":false,"merged":[[4,0,17,8],[4,10,13,13],[21,0,53,8],[21,10,30,13]]}
[{"$f":"+'Cover Page'!$B$29","v":"Annual Performance Report 2025"},null,null,null,{"$f":"+'Cover Page'!$B$33","v":"Newhaven Energy Recovery Facility "}]
[]
["Plant Description and Design",null,null,null,null,null,null,null,null,null,"Notes:"]
[]
["The Newhaven Energy Recovery Facility processes about half the household waste in the South Downs area. That’s approximately 240,000 tonnes of waste per year. The facility converts waste unsuitable for recycling into over 19. megawatts of electrical energy - enough power to supply 25,000 homes The electricity produced is then supplied to the National Grid. The Energy Recovery Facility is the first facility of its kind to be built in the South Downs area and is designed to make it a cleaner and greener place to live.",null,null,null,null,null,null,null,null,null,"Include summary of plant design, design capacity, no. of combustion lines, electrical and heat capacity and any other general information that describes the facility, its location and purpose "]
[]
[]
[]
[]
[]
[]
[]
[]
[]
[]
[]
[]
[]
[]
["Summary of Operational Processes and Procedures"]
[]
["Technical details of the plant:\n\nMaximum Permitted Refuse throughput – 242,000 tonnes per annum, with approximately 14 tonnes per hour burning capacity per stream\nStorage capacity – four days full plant capacity\nNumber of tipping bays – 8\nSteam output – 86 tonnes of steam per hour at 400*C and 49 bar\nFlue gas treatment – dry lime scrubber followed by high performance bag filters, discharging into a 65 metre high chimney\nEnergy produced – maximum generating capacity 19MW\n\n\nThe ERF is regulated by the Environment Agency and is certified in compliance with:\nISO 9001 : 2008\nISO 14001 : 2004, and\nOHAS 18001 : 2007",null,null,null,null,null,null,null,null,null,"Include summary of key processes and procedures such as (but not limited to); waste reception, control rooms, grate, bed and boiler, energy & heat  generation, cooling systems, residue management, emission controls, health and safety systems, maintenance"]

{"sheet":"Operational Data","index":2,"n_rows":65,"n_cols":10,"rows_kept":65,"cut":false,"hidden":false,"merged":[[3,1,3,2],[4,9,23,9],[7,2,7,3],[10,1,22,1],[25,9,29,9],[26,1,28,1],[34,1,39,1],[53,0,57,0]]}
[{"$f":"+'Cover Page'!$B$29","v":"Annual Performance Report 2025"},null,null,null,{"$f":"+'Cover Page'!$B$33","v":"Newhaven Energy Recovery Facility "}]
[]
["Operational Data"]
["Plant Size:",242000.0,null,"tonnes pa",null,null,null,null,null,"Notes:"]
["Nominal net thermal input:",null,"MWth",null,null,null,null,null,null,"* Export capacity = nominal generation capacity at the generator terminals minus nominal parasitic load.\n\n** CHP and district heating plants only - put N/A if no heat export.\n\n***  Combusted tonnage = tonnes delivered in period + (tonnes in bunker at start of period – tonnes in bunker at end of period), or equivalent calculation depending on plant type\n\n**** Availability Definition: The availability of a line is to be calculated by the number of hours the line reported Continuously Monitored emission levels to the Regulator through the calendar year divided by the total number of hours in that year. \n\nThe overall plant availability is calculated as the mean of all lines in the plant. For clarity this includes periods of abnormal operation.  \n\nRationale: The primary function of an Energy from Waste facility is the disposal of waste. It follows therefore that the availability of a plant is determined by the period of time a facility spends undertaking this activity.\n\n*****NCV of waste: This should be completed for all plants which have a boiler. Calculate using total thermal power produced by boiler/boiler efficiency, or other suitable calculation. \n"]
["Nominal electrical export capacity*:",19.0,"MWe"]
["Nominal heat export capacity**:",null,"MWth"]
["No. of combustion lines:",2.0,"No. of steam turbines:",null,1.0]
[]
["Waste types received","Unit","Q1","Q2","Q3","Q4","Year Total","%"]
["Household / Local Authority","tonnes",50560.0,43654.0,52192.0,50862.0,{"$f":"SUM(C11:F11)","v":197268},{"$f":"IF(G11>0,G11/$G$21,\"-\")","v":0.9058090467}]
["Commercial & Industrial ",null,5982.0,3071.0,4961.0,6499.0,20513,0.0941909533]
["Hazardous ",null,null,null,null,null,0,"-"]
["Clinical",null,null,null,null,null,0,"-"]
["Waste wood (biomass) ",null,null,null,null,null,0,"-"]
["Refuse Derived Fuel (incl. SRF) - H'hold/LA",null,null,null,null,null,0,"-"]
["Refuse Derived Fuel (incl. SRF) - C&I",null,null,null,null,null,0,"-"]
["Other [Please specify]",null,null,null,null,null,0,"-"]
["Other [Please specify]",null,null,null,null,null,0,"-"]
["Other [Please specify]",null,null,null,null,null,0,"-"]
["Total waste received",null,{"$f":"SUM(C11:C20)","v":56542},46725,57153,57361,217781]
["Rejected Waste ",null,null,null,null,null,0,{"$f":"IF(G22>0,G22/$G$21,\"-\")","v":"-"}]
["Unprocessed waste transferred out",null,null,null,null,null,0,"-"]
["Total waste combusted ***",null,57017.0,47607.5,57128.0,57964.0,219716.5]
[]
["Energy Usage / Export","Unit","Q1","Q2","Q3","Q4","Year Total","KWh/te",null,"Password for protected cells\nA password has been set to prevent accidental  editing of cells with formulae. \nIf you still need to make an edit for some reason then the password = 1234"]
["Power generated at generator terminals","MWh",38341.0,29805.0,37742.0,37908.0,{"$f":"SUM(C27:F27)","v":143796},{"$f":"IF(G27>0,G27*1000/$G$24,\"-\")","v":654.4615448}]
["Power exported to grid and other external user(s)",null,33309.0,25738.0,32640.0,32861.0,124548,566.8577462]
["Power imported",null,0.0,314.0,8.0,0.0,322,1.465524892]
["Indicative parasitic load","%",{"$f":"IF(C27>0,(C27-C28)/C27,\"-\")","v":0.1312433166},0.1364536152,0.1351809655,0.1331381239,{"$f":"IF(G27>0,1-G28/(G27+G29),\"-\")","v":0.1357915042}]
["Thermal Energy Exported **",null,null,null,null,null,{"$f":"SUM(C31:F31)","v":0},{"$f":"IF(G31>0,G31*1000/$G$24,\"-\")","v":"-"}]
["R1 value (if applicable)","R1","R1","R1","R1","R1"]
[]
["Waste Disposal & Recovery","Unit","Q1","Q2","Q3","Q4","Year Total","% inputs"]
["APC Residues - produced","tonnes",1691.0,1397.0,1772.0,1637.0,{"$f":"SUM(C35:F35)","v":6497},{"$f":"IF(G35>0,G35/$G$24,\"-\")","v":0.02956992306}]
["IBA - produced",null,9804.0,8770.0,10206.0,9873.0,38653,0.1759221542]
["Metals recycling",null,1178.0,1134.0,1245.0,1323.0,4880,0.02221043936]
["Other",null,0.0,0.0,0.0,0.0,0,"-"]
["Other",null,0.0,0.0,0.0,0.0,0,"-"]
["Other",null,0.0,0.0,0.0,0.0,0,"-"]
[]
["Raw Material Usage","Unit","Q1","Q2","Q3","Q4","Year Total","Qty./te"]
["Mains Water","ltrs",1.0574E7,9078000.0,1.1083E7,9720000.0,{"$f":"SUM(C43:F43)","v":40455000},{"$f":"IF(G43>0,G43/$G$24,\"-\")","v":184.123632}]
["Other Water","ltrs",null,null,null,null,0,"-"]
["Ammonia","kgs",38450.0,42180.0,46820.0,36900.0,164350,0.7480093666]
["Urea","kgs",null,null,null,null,0,"-"]
["Activated Carbon","kgs",13780.0,11920.0,16930.0,18530.0,61160,0.2783587031]
["Lime / hydrated lime","kgs",548240.0,527690.0,624630.0,533110.0,2233670,10.16614592]
["Fuel oil","ltrs",37612.0,94696.0,113297.0,44767.0,290372,1.321575758]
["Gas","m3",null,null,null,null,0,"-"]
["Other",null,null,null,null,null,0,"-"]
[]
["Summary ","Line/Unit","Q1","Q2","Q3","Q4","Year Total",null,"Hrs in year "]
["Availability of waste combustion by line, hrs ****",1.0,2031.0,1831.0,2158.0,2042.0,{"$f":"SUM(C54:F54)","v":8062},{"$f":"+G54/$I$54","v":0.9203196347},8760.0]
[null,2.0,2160.0,1703.2,2158.8,2187.0,8209,0.9371004566]
[null,3.0,null,null,null,null,0,0]
[null,4.0,null,null,null,null,0,0]
[null,5.0,null,null,null,null,0,0]
["Hours of turbine operations, hrs",1.0,2160.0,1851.0,2205.0,2208.0,8424,0.9616438356]
["Hours of turbine operations, hrs",2.0,null,null,null,null,0,0]
["Hours of heat / steam export**","hours",null,null,null,null,0,{"$f":"IF(B61>0,G60/I54,\"n/a\")","v":0}]
["Net calorific value of waste*****","MJ/kg",9.2,9.2,9.2,9.2,{"$f":"AVERAGE(C62:F62)","v":9.2}]
["Abnormal operation events","qty.",0.0,0.0,0.0,0.0,{"$f":"SUM(C63:F63)","v":0},{"$f":"IF(G63>0,\"yes\",\"no\")","v":"no"}]
["Abnormal operation duration","hours",null,null,null,null,0,{"$f":"+(G64)/I54","v":0}]
["Permit Breaches","qty.",0.0,0.0,0.0,0.0,0,{"$f":"IF(G65>0,\"yes\",\"no\")","v":"no"}]

{"sheet":"Operational Summary","index":3,"n_rows":39,"n_cols":11,"rows_kept":39,"cut":false,"hidden":false,"merged":[[32,2,32,8],[33,2,33,8],[34,2,34,8],[35,2,35,8],[36,2,36,8],[37,2,37,8],[38,2,38,8],[39,2,39,8],[4,0,26,8],[4,10,13,13],[28,1,28,8],[29,2,29,8],[29,10,39,13],[30,2,30,8],[31,2,31,8]]}
[{"$f":"+'Cover Page'!$B$29","v":"Annual Performance Report 2025"},null,null,null,{"$f":"+'Cover Page'!$B$33","v":"Newhaven Energy Recovery Facility "}]
[]
["Summary of Plant Operations and Maintenance during the reporting year",null,null,null,null,null,null,null,null,null,"Notes:"]
[]
["Plant outage period from 6th May through to 27th May 2025.  During this period planned preventative maintenance takes place, whereby components are assessed and replaced / repaired as required",null,null,null,null,null,null,null,null,null,"Include summary of key operational and/or maintenance activity undertaken in the year, such as any major component upgrades and/or replacements "]
[]
[]
[]
[]
[]
[]
[]
[]
[]
[]
[]
[]
[]
[]
[]
[]
[]
[]
[]
[]
[]
[]
[]
[{"$f":"+'Cover Page'!C39","v":2025},"Plant shut-downs"]
["Start date","End date","Reason for shut-down",null,null,null,null,null,null,null,"Provide a very brief reason for plant shut-down e.g. \"Shut-down prior to major outage\"; \"Emergency shut-down due to boiler tube leak\". All emergency shut-downs must be listed (irrespective of whether or not they were required to be reported to the EA). \n\nThere is no need to include periods of hot-standby here (e.g. to clear feed chute hopper blockages).\n\nFor clinical waste incinerators which require regular shut-downs for boiler cleaning, there is no need to record these here (only those prior to major outages, and emergency shut-downs). "]
["10.03.2025","15.03.2025","Line one taken out of service to repair superheater tube"]
["16.04.2025","20.04.2025","Line two taken out of service to repair superheater tube"]
["06.05.2023","21.05.2025","Line two planned preventative maintenance"]
["13.05.2025","27.05.2025","Line one planned preventative maintenance"]
["07.08.2025","07.08.2025","Line one taken out of service to repair the grate"]
["26.08.2025","26.08.2025","Line two taken out of service to inspect the grate"]
["24.09.2025","24.09.2025","Line two taken out of service to repair a feeder ram"]
["30.09.2025","30.09.2025","Line two taken out of service to repair a feeder ram"]
["09.11.2025","16.11.2025","Line 1 taken out of service for grate repairs."]

{"sheet":"Perf. Form 1","index":4,"n_rows":54,"n_cols":10,"rows_kept":54,"cut":false,"hidden":false,"merged":[[12,0,12,1],[13,0,13,1],[13,2,13,3],[13,4,13,5],[13,6,13,7],[13,8,13,9],[14,8,14,9],[14,0,14,3],[15,0,15,1],[15,2,15,3],[15,4,15,5],[15,6,15,7],[15,8,15,9],[16,0,16,9],[18,4,18,5],[18,6,18,7],[17,0,17,1],[17,2,17,3],[17,4,17,5],[17,6,17,7],[17,8,17,9],[18,2,18,3],[18,8,18,9],[20,6,20,7],[20,8,20,9],[18,0,18,1],[19,0,19,1],[19,2,19,3],[19,4,19,5],[19,6,19,7],[19,8,19,9],[20,0,20,1],[22,0,22,3],[22,4,22,5],[22,6,22,7],[22,8,22,9],[23,4,23,5],[23,6,23,7],[23,8,23,9],[23,0,23,3],[25,0,25,9],[26,0,28,9],[31,0,31,3],[31,7,31,8],[32,4,32,5],[32,7,32,8],[32,0,32,3],[33,0,33,3],[33,4,33,5],[33,7,33,8],[34,0,34,3],[34,4,34,5],[34,7,34,8],[36,7,36,8],[37,7,37,8],[35,0,35,3],[35,4,35,5],[35,7,35,8],[36,0,36,3],[36,4,36,5],[37,0,37,3],[37,4,37,5],[49,0,49,9],[50,0,51,9],[38,0,38,9],[39,0,40,9],[43,0,43,1],[43,2,43,9],[45,0,45,1],[46,0,46,1],[47,0,47,1],[2,0,2,4],[2,6,2,8],[3,1,3,4],[5,3,5,4],[5,6,5,7],[8,0,8,1],[8,2,8,3],[10,6,10,7],[10,8,10,9],[8,4,8,5],[8,6,8,7],[8,8,8,9],[9,0,9,9],[10,0,10,1],[10,2,10,3],[10,4,10,5],[12,4,12,5],[12,6,12,7],[11,0,11,1],[11,2,11,3],[11,4,11,5],[11,6,11,7],[11,8,11,9],[12,2,12,3],[12,8,12,9],[14,4,14,5],[14,6,14,7],[20,2,20,3],[20,4,20,5],[21,0,21,1],[21,2,21,3],[21,4,21,5],[21,6,21,7],[21,8,21,9]]}
[{"$f":"+'Cover Page'!C39","v":2025}," Annual Reporting Performance Form 1"]
[]
[{"$f":"+'Cover Page'!B31","v":"Permit EPR/BV8067IL"},null,null,null,null,"Operator: ",{"$f":"+'Cover Page'!B37","v":"Veolia"}]
["Facility:",{"$f":"+'Cover Page'!B33:I33","v":"Newhaven Energy Recovery Facility "},null,null,null,"Form:","Performance 1"]
[]
["Reporting  Period from: ",null,null,"01.01.2025",null,"to:","31.12.2025"]
[]
[{"$f":"+A1","v":2025},"Annual Reporting of Waste Disposal and Recovery"]
["Waste Description",null,"Disposal Route(s)",null,"Disposal Tonnes",null,"Recovery Tonnes",null,"% / tonne of waste incinerated"]
["1) Hazardous Wastes"]
["APC Residues",null,"D9",null,{"$f":"'Operational Data'!G35","v":6497},null,null,null,{"$f":"IF((E11+G11)>0,(E11+G11)/'Operational Data'!$G$24, \"-\")","v":0.02956992306}]
["IBA",null,null,null,null,null,null,null,{"$f":"IF((E12+G12)>0,(E12+G12)/'Operational Data'!$G$24, \"-\")","v":"-"}]
[null,null,null,null,null,null,null,null,{"$f":"IF((E13+G13)>0,(E13+G13)/'Operational Data'!$G$24, \"-\")","v":"-"}]
[null,null,null,null,null,null,null,null,{"$f":"IF((E14+G14)>0,(E14+G14)/'Operational Data'!$G$24, \"-\")","v":"-"}]
["Total Hazardous Waste",null,null,null,{"$f":"SUM(E11:F14)","v":6497},null,{"$f":"SUM(G11:H14)","v":0},null,{"$f":"IF((E15+G15)>0,(E15+G15)/'Operational Data'!$G$24, \"-\")","v":0.02956992306}]
[]
["2) Non-Hazardous Wastes"]
["IBA",null,"R5",null,null,null,{"$f":"'Operational Data'!G36","v":38653},null,{"$f":"IF((E18+G18)>0,(E18+G18)/'Operational Data'!$G$24, \"-\")","v":0.1759221542}]
["Ferrous Metal",null,"R4",null,null,null,{"$f":"'Operational Data'!G37","v":4880},null,{"$f":"IF((E19+G19)>0,(E19+G19)/'Operational Data'!$G$24, \"-\")","v":0.02221043936}]
["Process Water",null,null,null,null,null,null,null,{"$f":"IF((E20+G20)>0,(E20+G20)/'Operational Data'!$G$24, \"-\")","v":"-"}]
[null,null,null,null,null,null,null,null,{"$f":"IF((E21+G21)>0,(E21+G21)/'Operational Data'!$G$24, \"-\")","v":"-"}]
[null,null,null,null,null,null,null,null,{"$f":"IF((E22+G22)>0,(E22+G22)/'Operational Data'!$G$24, \"-\")","v":"-"}]
["Total Non-Hazardous Waste",null,null,null,{"$f":"SUM(E18:F22)","v":0},null,{"$f":"SUM(G18:H22)","v":43533},null,{"$f":"IF((E23+G23)>0,(E23+G23)/'Operational Data'!$G$24, \"-\")","v":0.1981325936}]
["TOTAL WASTE",null,null,null,{"$f":"+E23+E15","v":6497},null,{"$f":"+G23+G15","v":43533},null,{"$f":"IF((E24+G24)>0,(E24+G24)/'Operational Data'!$G$24, \"-\")","v":0.2277025167}]
[]
["Operator’s comments :"]
[]
[]
[]
[]
[{"$f":"+A1","v":2025},"Annual Reporting of Water and Other Raw Material Usage"]
["Raw Material",null,null,null,"Usage",null,"Unit","Specific Usage",null,"Unit"]
["Mains Water",null,null,null,{"$f":"+'Operational Data'!G43/1000","v":40455},null,"m3",{"$f":"IF(E33>0,E33/'Operational Data'!$G$24,\"-\")","v":0.184123632},null,"m3/te"]
["Total Water",null,null,null,{"$f":"+'Operational Data'!G44+'Operational Data'!G43/1000","v":40455},null,"m3",{"$f":"IF(E34>0,E34/'Operational Data'!$G$24,\"-\")","v":0.184123632},null,"m3/te"]
["Urea / Ammonia",null,null,null,{"$f":"+'Operational Data'!G45","v":164350},null,"kg",{"$f":"IF(E35>0,E35/'Operational Data'!$G$24,\"-\")","v":0.7480093666},null,"kg/te"]
["Activated Carbon",null,null,null,{"$f":"+'Operational Data'!G47","v":61160},null,"kg",{"$f":"IF(E36>0,E36/'Operational Data'!$G$24,\"-\")","v":0.2783587031},null,"kg/te"]
["Lime / hydrated lime / Sodium Bicarb.",null,null,null,{"$f":"+'Operational Data'!G48","v":2233670},null,"kg",{"$f":"IF(E37>0,E37/'Operational Data'!$G$24,\"-\")","v":10.16614592},null,"kg/te"]
[]
["Operator’s comments :"]
[]
[]
[]
[{"$f":"+A31","v":2025},"Annual Reporting of other performance indicators "]
["Parameter",null,"Results by Line"]
[null,null,"A1","A2","A3","A4","A5",null,"Turbine 1","Turbine 2"]
["Operating hours for the year, hours",null,{"$f":"'Operational Data'!G54","v":8062},{"$f":"'Operational Data'!G55","v":8209},null,null,null,null,{"$f":"'Operational Data'!G59","v":8424}]
["Number of periods of abnormal operation, qty."]
["Cumulative hours of abnormal operation for this year, hours"]
[]
["Operator’s comments :"]
[]
[]
[]
["Signed: ",null,null,null,null,null,"Date:","15.01.2026"]

{"sheet":"Energy Form 1","index":5,"n_rows":29,"n_cols":8,"rows_kept":29,"cut":false,"hidden":false,"merged":[[2,6,2,8],[4,1,4,4],[6,3,6,4],[6,6,6,7],[8,0,8,2],[8,3,8,4],[8,6,8,8],[10,6,10,8],[11,6,11,8],[12,6,12,8],[13,6,13,8],[14,6,14,8],[15,6,15,8],[9,0,9,2],[9,3,9,4],[9,6,9,8],[10,0,10,2],[10,3,10,4],[11,0,11,2],[11,3,11,4],[15,0,15,2],[17,0,17,8],[18,0,24,8],[12,0,12,2],[12,3,12,4],[13,0,13,2],[13,3,13,4],[14,0,14,2],[14,3,14,4],[15,3,15,4]]}
[{"$f":"+'Cover Page'!C39","v":2025}," Annual Reporting of Energy Usage/Export"]
[]
[{"$f":"+'Cover Page'!B31","v":"Permit EPR/BV8067IL"},null,null,null,null,"Operator: ",{"$f":"+'Cover Page'!B37","v":"Veolia"}]
[]
["Facility:",{"$f":"+'Cover Page'!B33:I33","v":"Newhaven Energy Recovery Facility "},null,null,null,"Form:","Energy 1"]
[]
["Reporting  Period from: ",null,null,{"$f":"+'Perf. Form 1'!D6:E6","v":"01.01.2025"},null,"to:",{"$f":"+'Perf. Form 1'!G6:H6","v":"31.12.2025"}]
[]
["Energy Source",null,null,"Energy Usage",null,"Unit","Specific Usage (KWh/tonne incinerated"]
["Electricity Produced",null,null,{"$f":"+'Operational Data'!G27","v":143796},null,"MWh",{"$f":"+'Operational Data'!H27","v":654.4615448}]
["Electricity Imported   ",null,null,{"$f":"+'Operational Data'!G29","v":322},null,"MWh",{"$f":"+'Operational Data'!H29","v":1.465524892}]
["Electricity Exported",null,null,{"$f":"+'Operational Data'!G28","v":124548},null,"MWh",{"$f":"+'Operational Data'!H28","v":566.8577462}]
["Gas Oil",null,null,null,null,"tonnes"]
["Steam/hot water exported",null,null,{"$f":"+'Operational Data'!G31","v":0},null,"GWh",{"$f":"+'Operational Data'!H31","v":"-"}]
[]
[]
[]
["Operator’s comments :"]
[]
[]
[]
[]
[]
[]
[]
[]
[]
[]
["Signed: ",null,null,null,null,null,"Date:","15.01.2026"]

{"sheet":"Permit Compliance","index":6,"n_rows":30,"n_cols":12,"rows_kept":30,"cut":false,"hidden":false,"merged":[[9,2,9,4],[9,5,9,8],[10,0,10,1],[10,2,10,4],[9,0,9,1],[11,0,11,1],[11,2,11,4],[11,5,11,8],[12,0,12,1],[12,2,12,4],[13,2,13,4],[13,5,13,8],[14,0,14,1],[14,2,14,4],[24,3,24,5],[25,3,25,5],[26,0,26,8],[28,0,28,10],[29,1,29,3],[29,4,29,6],[29,7,29,9],[32,4,32,6],[32,7,32,9],[33,1,33,3],[33,4,33,6],[33,7,33,9],[34,1,34,3],[34,4,34,6],[34,7,34,9],[35,4,35,8],[30,1,30,3],[30,4,30,6],[30,7,30,9],[31,1,31,3],[31,4,31,6],[31,7,31,9],[32,1,32,3],[8,0,8,1],[13,0,13,1],[14,5,14,8],[15,0,15,1],[15,2,15,4],[15,5,15,8],[16,0,16,1],[16,2,16,4],[16,5,16,8],[18,0,18,10],[7,0,7,1],[7,2,7,8],[8,2,8,4],[8,5,8,8],[8,11,20,11],[10,5,10,8],[12,5,12,8],[19,7,19,8],[23,1,23,2],[24,1,24,2],[25,1,25,2],[19,1,19,2],[19,3,19,5],[21,1,21,2],[21,3,21,5],[22,1,22,2],[22,3,22,5],[23,3,23,5]]}
[{"$f":"+'Cover Page'!$B$29","v":"Annual Performance Report 2025"},null,null,null,{"$f":"+'Cover Page'!$B$33","v":"Newhaven Energy Recovery Facility "}]
[]
["Summary of Permit Compliance"]
[]
["Compliance with permit limits for continuously monitored pollutants"]
[]
["The plant met its emission limits as shown in the table below:"]
["Substance",null,"Percentage time compliant during operationNote 1",null,null,null,null,null,null,null,null,"Notes:"]
[null,null,"Half-hourly limit",null,null,"Daily limit",null,null,null,null,null,"Note 1: Please report to 2 decimal places, i.e. xx.xx%\n\nNote 2: Please enter into this table any permit non-compliances that the EA has given a CCS score for. Please also enter any other non-compliances which you have notified to the EA (e.g. ELV exceedances) but which have not yet been assessed by the EA. There is no need to enter any notifications which were subsequently assessed by the EA not to be permit breaches.  \n\nNote 3: Please enter information here (rather than just referencing the notifications that were sent to the EA) including where relevant the incineration line reference, pollutant and value of the measured result for any ELV exceedances.   \n\n"]
["Particulates",null,1.0,null,null,1.0]
["Oxides of nitrogen",null,1.0,null,null,1.0]
["Sulphur dioxide",null,1.0,null,null,1.0]
["Carbon monoxide",null,"100.00% 95% of 10-min averages",null,null,1.0]
["Total organic carbon",null,"100.00% of 97% 30-min averages",null,null,1.0]
["Hydrogen chloride",null,1.0,null,null,1.0]
["Hydrogen fluoride",null,1.0,null,null,1.0]
[]
[]
["Summary of non-compliances under the permit Note 2"]
["Date","Summary of non-compliance Note 3",null,"Reason ",null,null,"Measures taken to prevent reoccurrence","CCS score if applicable*"]
[null,null,null,null,null,null,null,"Impact","Root cause"]
[]
[]
[]
[]
[]
["*If the Environment Agency (EA) has given a Compliance Classification Scheme (CCS) score due to a permit non-compliance it should be entered here (CCS4 = No impact; CCS3 = Minor impact; CCS2 = Significant impact; CCS1 = Major impact). If the EA has not yet assessed a non-compliance which you have notified to them, these columns should be left blank. Enter N/A if no score was given for the root cause.  "]
[]
["Summary of any complaints received and actions to taken to resolve them."]
["Date","Summary of complaint [including Line/Reference]",null,null,"Reason (including whether substantiated by the operator or the EA)",null,null,"Measures taken to prevent reoccurrence"]

{"sheet":"Improvements","index":7,"n_rows":39,"n_cols":5,"rows_kept":39,"cut":false,"hidden":false,"merged":[[4,0,4,8],[5,0,13,8],[15,0,15,8],[16,0,24,8],[26,0,26,8],[27,0,35,8],[37,0,37,8],[38,0,51,8]]}
[{"$f":"+'Cover Page'!$B$29","v":"Annual Performance Report 2025"},null,null,null,{"$f":"+'Cover Page'!$B$33","v":"Newhaven Energy Recovery Facility "}]
[]
["Summary of Plant Improvements"]
[]
["Summary of any efficiency improvements that have been completed within the year."]
["Continuation of 24 month planned preventative outage strategy"]
[]
[]
[]
[]
[]
[]
[]
[]
[]
["Summary of any permit improvement conditions that have been completed within the year and the resulting environmental benefits."]
[]
[]
[]
[]
[]
[]
[]
[]
[]
[]
["Summary of any changes to the plant or operating techniques which required a variation to the permit and a summary of the resulting environmental impact."]
[]
[]
[]
[]
[]
[]
[]
[]
[]
[]
["Summary of any other improvements made to the plant or planned to be made and a summary of the resulting environmental benefits."]
["Continuation of 24 month outage strategy resulting in higher availability and less waste diversion to Landfill\n\nEvery practicable opportunity to use the heat rejected at the steam condensers for beneficial local use is investigated.  To date no cost effective or practicable options have become available.  The site will continue to identify all possible opportunities, and investigate the practicalities of its installation.  All viable developments will be implemented at the earliest opportunity.\n\nRaw materials used on site are trended by the Facility Manager and recorded on the company intranet so that benchmarks are visible to the group. These Key Performance Indicators (KPIs) are reviewed daily, weekly, monthly and annually. If any opportunities arise which would result in reduction or avoidance in raw material usage, they will be implemented at the earliest convenience. \n\nThere are no improvements to be made at this time regarding the use of raw materials at the site."]

{"sheet":"Public Liasion","index":8,"n_rows":29,"n_cols":5,"rows_kept":29,"cut":false,"hidden":false,"merged":[[10,0,11,1],[12,0,13,1],[16,0,16,1],[17,0,18,1],[19,0,20,1],[21,0,22,1],[23,0,24,1],[25,0,26,1],[5,0,5,1],[5,2,5,8],[6,0,7,1],[6,2,7,8],[8,0,9,1],[8,2,9,8],[10,2,11,8],[25,2,26,8],[28,0,28,8],[12,2,13,8],[15,0,15,8],[16,2,16,8],[17,2,18,8],[19,2,20,8],[21,2,22,8],[23,2,24,8]]}
[{"$f":"+'Cover Page'!$B$29","v":"Annual Performance Report 2025"},null,null,null,{"$f":"+'Cover Page'!$B$33","v":"Newhaven Energy Recovery Facility "}]
[]
["Details of Public & Stakeholder Liaison"]
[]
["Summary of events held during the reporting year."]
["Date",null,"Description"]
["25th September 2025",null,"The Veolia Open Day invites visitors from across the county to discover what happens at our waste management facilities, offering behind-the-scenes tours and activities that provide insight into our integrated recycling and recovery network and the importance of proper waste disposal  "]
[]
[]
[]
[]
[]
[]
[]
[]
["List of events planned for next year"]
["Date",null,"Description"]
["TBC",null,"Veolia Open Day"]
[]
[]
[]
[]
[]
[]
[]
[]
[]
[]
["If you wish to be involved in the public liaison programme, please contact _________________"]

{"sheet":"CO2 N2O","index":9,"n_rows":25,"n_cols":6,"rows_kept":25,"cut":false,"hidden":false,"merged":[[16,2,16,3],[17,0,17,3],[19,2,19,3],[22,2,22,3],[25,1,25,3],[4,0,4,3],[6,5,9,5],[8,2,8,3],[9,0,9,3],[11,2,11,3],[12,0,12,1],[13,0,13,3]]}
[{"$f":"+'Cover Page'!$B$29","v":"Annual Performance Report 2025"},null,{"$f":"+'Cover Page'!$B$33","v":"Newhaven Energy Recovery Facility "}]
[]
["Carbon dioxide emissions and biogenic content of waste inputs",null,null,null,null,"Notes:"]
[]
["Carbon dioxide emissions (all types of plant)"]
[null,"Annual mass of carbon dioxide released","tonnes ",251366.83]
[null,"Annual mass of carbon dioxide released per tonne of waste burned","t CO2 / t waste ",1.14,null,"Note 1: All permits require operators to continuously monitor CO2 to EN14181 and flow to BS EN 16911-2 (unless otherwise agreed in writing). Operators must therefore use the results from these instruments to calculate their annual CO2 emissions. Where an operator does not have a flow meter calibrated to BS EN 16911-2, the averaged flow measurement from that year's periodic monitoring can be used instead. If the plant does not have calibrated CO2 CEMS, a suitably justified emissions factor can be used. \n\n"]
[null,"Annual mass of carbon dioxide released per MWh of energy exported","t CO2 / MWh export ",2.02]
[null,"Description of how annual carbon dioxide mass emission has been calculated. \nSee Note 1","CEMS data"]
["Nitrous oxide emissions (only plants which use ammonia or urea to abate NOx emissions)"]
[null,"Annual mass emissions of nitrous oxide","tonnes N2O",3.73]
[null,"Description of how annual nitrous oxide mass emission has been calculated\nSee Note 2","CEMS data",null,null,"Note 2: All permits require operators to continuously monitor N2O to EN14181 and flow to BS EN 16911-2, unless otherwise agreed in writing. Operators must therefore use the results from these instruments to calculate their annual N2O emissions. Where an operator does not have a flow meter calibrated to BS EN 16911-2, the averaged flow measurement from periodic monitoring can be used instead. If the plant does not have calibrated N2O CEMS, data from periodic monitoring or a suitably justified emissions factor can be used instead."]
["Total annual carbon dioxide + nitrous oxide emissions. \nSee Note 3. ",null,"tonnes CO2e",252355.44,null,"Note 3: Total annual carbon dioxide and nitrous oxide emissions reported as carbon dioxide equivalent where 1 tonne nitrous oxide is equivalent to 265 tonnes carbon dioxide."]
["Biogenic CO2 emissions (See Note 4)",null,null,null,null,"Note 4: Only plants combusting residual municipal waste, refuse derived fuel or solid recovered fuel need complete this section. "]
[null,"Percentage of total carbon dioxide emissions arising from biogenic waste",0.518,130208.02]
[null,"No. of measurements undertaken","Number"]
[null,"Description of how percentage biogenic carbon dioxide emissions have been measured or calculated.\nSee Note 5","Combusted waste multiplied by the WRAP data for residual waste of 51.8%",null,null,"Note 5: The results from C14 sampling should be used if this is carried out at the plant (either via an installed sampler or from spot samples).  \nOtherwise, as an approximation (and in lieu of any more accurate metrics which may be developed in future), the measured or estimated biogenic fraction by net calorific value (see Note 6) can be assumed to be the same as the biogenic CO2 fraction of the total CO2 emissions from the plant. "]
["Biogenic fraction of waste feedstock (See Note 4)"]
[null,"Yearly average biogenic percentage of the waste by net calorific value (NCV)",0.518,130208.02]
[null,"Description of how biogenic percentage (by NCV) has been calculated or estimated. \nSee Note 6","Combusted waste multiplied by the WRAP data for residual waste of 51.8%",null,null,"Note 6: If C14 sampling is carried out at the plant, the methodology set out in the embedded document entitled \"Renewable Energy Association Energy Content of Fuels - Description of Method\" embedded below can be used to calculate the biogenic percentage by net calorific value. Otherwise, data from waste sampling or BIOMA software can be used; or if none of these are available, an estimated figure with justification or a figure assumed on the basis of up-to-date industry data can be used. "]
[null,"Yearly average biogenic percentage of the waste by mass",0.518,130208.02]
[null,"If waste sampling undertaken, no. of samples used to ascertain average biogenic percentages above","Number"]
[null,"Description of how biogenic percentage (by mass) has been calculated or estimated. \nSee Note 7","Combusted waste multiplied by the WRAP data for residual waste of 51.8%",null,null,"Note 7: Where available, data from waste sampling should be used; otherwise, an estimated figure with justification can be used, or a figure assumed on the basis of up-to-date industry data. "]
[]
[null,"Comments:"]

{"sheet":"Residues","index":10,"n_rows":62,"n_cols":11,"rows_kept":62,"cut":false,"hidden":false,"merged":[[4,0,25,8],[4,10,13,13],[30,0,31,6],[32,0,33,6],[34,0,35,6],[37,0,37,6],[38,2,38,6],[38,0,38,1],[39,0,40,1],[39,2,40,6],[41,0,42,1],[41,2,42,6],[43,0,44,1],[43,2,44,6],[52,3,52,6],[53,3,53,4],[53,5,53,6],[45,0,46,1],[45,2,46,6],[47,0,48,1],[47,2,48,6],[51,0,51,6],[52,0,53,1],[52,2,53,2],[56,3,56,4],[56,5,56,6],[57,0,57,1],[57,3,57,4],[57,5,57,6],[58,0,58,6],[60,0,60,6],[61,0,66,6],[54,0,54,1],[54,3,54,4],[54,5,54,6],[55,0,55,1],[55,3,55,4],[55,5,55,6],[56,0,56,1]]}
[{"$f":"+'Cover Page'!$B$29","v":"Annual Performance Report 2025"},null,null,null,{"$f":"+'Cover Page'!$B$33","v":"Newhaven Energy Recovery Facility "}]
[]
["Summary of Residue Handling for the reporting year"]
[]
["The Incinerator Bottom Ash (IBA) is transported via railway to an aggregate processing facility situated in Brentford. The IBA is reprocessed into a number of different graded aggregates, ferrous and non ferrous metal products, which are then utilised in the construction and metal industry.\n\nFerrous metals removed during on site processing of IBA are forwarded to a metals recycling facility.  The metals are separated into individual fractions, and are sent on for utilisation in the metal industry.\n\nThe fine particulate matter, known as Air Pollution Control Residue (APCr), is removed from the process by a fabric filter. The APCr is sent to Empire, another Veolia site located in Aldridge, West Midlands where it is used to neutralise spent acid wastes before final disposal. \n\nAll wastes generated by the activities is treated in accordance with the waste hierarchy referred to in Article 4 of the Waste Framework Directive.  All avenues for waste processing are continuously monitored and reviewed, any opportunities to improve on the current methods would be implemented at the earliest opportunity",null,null,null,null,null,null,null,null,null,"Include in here a summary of residue handling regimes and destinations "]
[]
[]
[]
[]
[]
[]
[]
[]
[]
[]
[]
[]
[]
[]
[]
[]
[]
[]
[]
[]
[]
[]
["Residue Quality Monitoring Requirements"]
[]
["Summary of monitoring undertaken and compliance"]
[]
[]
[]
[]
[]
[]
[]
["Commentary on any specific events"]
["Date & Event",null,"Description"]
[]
[]
[]
[]
[]
[]
[]
[]
[]
[]
[]
[]
["Residue Quality Monitoring Results"]
["Parameter (unit) ",null,"Limit*","Normal Operation "]
[null,null,null,"Bottom ash  ",null,"APC Residues"]
["Loss on Ignition (average %)",null,"<5%"]
["Total Organic Carbon (average %)",null,"<3%",0.9]
["No. of Assessments Undertaken",null,"---",4.0,null,4.0]
["No. of Hazardous Results",null,"---",0.0]
["* The permit will specify a limit of either 5% loss on ignition or 3% total organic carbon. If both are measured anyway, please enter the results here, even where the limit does not apply. "]
[]
["Comments :"]
["TOC value is the average of quarterly assessments"]

{"sheet":"Water","index":11,"n_rows":23,"n_cols":9,"rows_kept":23,"cut":false,"hidden":false,"merged":[[14,0,15,1],[16,0,17,1],[18,0,19,1],[7,0,8,8],[9,0,10,8],[12,0,12,8],[13,0,13,1],[13,2,13,8],[14,2,15,8],[5,0,6,8],[16,2,17,8],[18,2,19,8],[21,0,21,8],[22,0,22,2],[22,3,22,4],[23,0,23,2],[23,3,23,4],[27,0,27,2],[28,0,28,2],[28,3,28,4],[29,0,29,2],[29,3,29,4],[24,0,24,2],[24,3,24,4],[25,0,25,2],[25,3,25,4],[26,0,26,2],[26,3,26,4],[27,3,27,4]]}
[{"$f":"+'Cover Page'!$B$29","v":"Annual Performance Report 2025"},null,null,null,{"$f":"+'Cover Page'!$B$33","v":"Newhaven Energy Recovery Facility "}]
[]
["Emissions to Water"]
[]
["Summary of monitoring undertaken and compliance"]
["No EPR requirements to monitor discharges to sewer.  Any discharges are regulated by the water authorities"]
[]
[]
[]
[]
[]
[]
["Commentary on any specific events"]
["Date & Event",null,"Description"]
[]
[]
[]
[]
[]
[]
[]
["Emissions to Water / Sewer"]
["Parameter",null,null,"Monitoring Frequency",null,"Limit","Target","Max.","Average"]

{"sheet":"Air (periodic)","index":12,"n_rows":40,"n_cols":11,"rows_kept":40,"cut":false,"hidden":false,"merged":[[29,3,29,4],[30,3,30,4],[22,3,22,4],[23,3,23,4],[24,3,24,4],[25,3,25,4],[26,3,26,4],[27,3,27,4],[28,3,28,4],[32,3,32,4],[33,3,33,4],[35,0,35,1],[35,3,35,4],[36,0,36,1],[36,3,36,4],[37,0,37,1],[37,3,37,4],[28,0,28,1],[29,0,29,1],[30,0,30,1],[31,0,31,1],[31,3,31,4],[32,0,32,1],[33,0,33,1],[9,10,11,13],[13,10,14,12],[15,10,16,10],[15,11,16,11],[15,12,16,12],[5,0,6,9],[5,10,8,13],[8,0,8,9],[9,2,10,2],[9,3,10,4],[9,5,9,9],[11,3,11,4],[9,0,10,1],[11,0,11,1],[12,0,12,1],[12,3,12,4],[13,0,13,1],[13,3,13,4],[14,3,14,4],[14,0,14,1],[15,0,15,1],[16,0,16,1],[17,0,17,1],[18,0,18,1],[19,0,19,1],[20,0,20,1],[15,3,15,4],[16,3,16,4],[17,3,17,4],[18,3,18,4],[19,3,19,4],[20,3,20,4],[21,3,21,4],[21,0,21,1],[22,0,22,1],[23,0,23,1],[24,0,24,1],[25,0,25,1],[26,0,26,1],[27,0,27,1],[34,0,34,1],[34,3,34,4],[38,0,38,9],[39,0,40,9]]}
[{"$f":"+'Cover Page'!$B$29","v":"Annual Performance Report 2025"},null,null,null,{"$f":"+'Cover Page'!$B$33","v":"Newhaven Energy Recovery Facility "}]
[]
["Emissions to Air (periodically monitored)"]
[]
["Summary of monitoring undertaken, standards used and compliance",null,null,null,null,null,null,null,null,null,"Notes:"]
["Permit requirement compliance tested through external company and performed every six months",null,null,null,null,null,null,null,null,null,"Template may require adjustment for any bespoke monitoring requirements of permit - please also check that all default ELV values, reference periods and the stated oxygen reference value match those for your plant, and edit if necessary!"]
[]
[]
["Results of emissions to air that are periodically monitored - oxygen reference 11% "]
["Substance",null,"Ref. Period","Emission Limit Value",null,"Average",null,null,null,null,"User to add additional tables as necessary, depending on whether quarterly or bi-annual reporting is required for the compliance year"]
[null,null,null,null,null,"A1","A2","A3","A4","A5"]
["Hydrogen fluoride",null,"1 hr","1 mg/m3",null,0.025,0.025]
["Cd and Tl and their compounds",null,"0.5-8hrs","0.02 mg/m3",null,0.001,9.0E-4]
["Hg and its compounds",null,"0.5-8hrs","0.02 mg/m3",null,9.0E-4,7.999999999999999E-4]
["Sb, As, Pb, Cr, Co, Cu, Mn, Ni, V and their compounds",null,"0.5-8hrs","0.3 mg/m3",null,0.0173,0.01885]
["Dioxins & Furans (I-TEQ)",null,"6-8hrs","0.06 ng/m3",null,0.0085,0.003]
["PCBs (WHO-TEQ Humans / Mammals)",null,"6-8hrs","None set ng/m3",null,4.0649999999999996E-4,1.85E-4]
["PCBs (WHO-TEQ Fish)",null,"6-8hrs","None set ng/m3",null,2.05E-5,9.5E-6]
["PCBs (WHO-TEQ Birds)",null,"6-8hrs","None set ng/m3",null,0.001021,9.085E-4]
["Dioxins & Furans (WHO-TEQ Humans / Mammals)",null,"6-8hrs","None set ng/m3",null,0.008199999999999999,0.00285]
["Dioxins & Furans (WHO-TEQ Fish)",null,"6-8hrs","None set ng/m3",null,0.0075,0.0029]
["Dioxins & Furans (WHO-TEQ Birds)",null,"6-8hrs","None set ng/m3",null,0.01075,0.00605]
["Anthanthrene",null,"6-8hrs","None set µg/m3",null,6.1E-4,7.95E-4]
["Benzo(a)anthracene",null,"6-8hrs","None set µg/m3",null,0.0013,0.00192]
["Benzo(a)pyrene",null,"6-8hrs","None set µg/m3",null,0.00145,7.95E-4]
["Benzo(b)fluoranthene",null,"6-8hrs","None set µg/m3",null,6.1E-4,7.95E-4]
["Benzo(b)naptho(2,1-d) thiophene",null,"6-8hrs","None set µg/m3",null,0.00122,0.00159]
["Benzo(c)phenanthrene",null,"6-8hrs","None set µg/m3",null,0.00122,0.00159]
["Benzo(ghi)perylene",null,"6-8hrs","None set µg/m3",null,0.00435,0.00168]
["Benzo(k)fluoranthene",null,"6-8hrs","None set µg/m3",null,6.1E-4,7.95E-4]
["Cholanthrene",null,"6-8hrs","None set µg/m3",null,0.00122,0.00159]
["Chrysene",null,"6-8hrs","None set µg/m3",null,0.00147,0.00159]
["Cyclopenta(cd)pyrene",null,"6-8hrs","None set µg/m3",null,0.00122,0.00159]
["Dibenzo(ai)pyrene",null,"6-8hrs","None set µg/m3",null,0.00122,0.00159]
["Dibenzo(ah)anthracene",null,"6-8hrs","None set µg/m3",null,0.00122,0.00159]
["Fluoranthene",null,"6-8hrs","None set µg/m3",null,0.01838,0.01763]
["Indeno(123-cd) pyrene",null,"6-8hrs","None set µg/m3",null,6.1E-4,7.95E-4]
["Naphthalene",null,"6-8hrs","None set µg/m3",null,0.58587,0.89482]
["Comments :"]
["Results <LOD are reported as LOD"]

{"sheet":"Air (CEMS)","index":13,"n_rows":28,"n_cols":14,"rows_kept":28,"cut":false,"hidden":false,"merged":[[11,5,11,6],[11,7,11,8],[11,9,11,10],[11,11,11,12],[12,13,13,15],[14,13,15,13],[14,14,15,14],[14,15,15,15],[13,0,14,0],[26,0,26,12],[28,0,29,12],[5,0,6,12],[7,0,8,12],[10,0,10,12],[11,0,12,0],[11,1,12,1],[11,2,12,2],[11,3,11,4]]}
[{"$f":"+'Cover Page'!$B$29","v":"Annual Performance Report 2025"},null,null,null,null,null,null,null,{"$f":"+'Cover Page'!$B$33","v":"Newhaven Energy Recovery Facility "}]
[]
["Emissions to Air (continuously monitored)"]
[null,null,null,null,null,null,null,null,null,null,null,null,null,"Notes:"]
["Summary of monitoring undertaken, standards used and compliance",null,null,null,null,null,null,null,null,null,null,null,null,"Template may require adjustment for any bespoke monitoring requirements of permit"]
["Monitoring undertaken in accordance with the standards set out in the Permit                                                                                                \n                                                                                                "]
[null,null,null,null,null,null,null,null,null,null,null,null,null,"Report to 1 decimal place"]
[]
[]
[]
["Results of emissions to air that are continuously monitored (maximum and average values for each line) - oxygen reference 11%"]
["Substance","Reference Period","Emission Limit Value","A1",null,"A2",null,"A3",null,"A4",null,"A5"]
[null,null,null,"Max.","Avg.","Max.","Avg.","Max.","Avg.","Max.","Avg.","Max.","Avg."]
["Oxides of nitrogen","Daily mean","180 mg/m3 ",{"$f":"NOx!O19","v":172.47},{"$f":"NOx!N19","v":168.2091667},{"$f":"NOx!O34","v":171.78},{"$f":"NOx!N34","v":169.1958333}]
[null,"½ hourly mean","400 mg/m3 ",{"$f":"NOx!M19","v":221.98},{"$f":"NOx!L19","v":168.2383333},{"$f":"NOx!M34","v":230.84},{"$f":"NOx!L34","v":169.2266667}]
["Particulates","Daily mean","5 mg/m3",{"$f":"Particulates!O19","v":3.59},{"$f":"Particulates!N19","v":1.520833333},{"$f":"Particulates!O34","v":2.54},{"$f":"Particulates!N34","v":1.269166667}]
[null,"½ hourly mean","30 mg/m3 ",{"$f":"Particulates!M19","v":5.51},{"$f":"Particulates!L19","v":1.554166667},{"$f":"Particulates!M34","v":8.02},{"$f":"Particulates!L34","v":1.305}]
["Total Organic Carbon ","Daily mean","10 mg/m3 ",{"$f":"TOC!O19","v":3.13},{"$f":"TOC!N19","v":0.2033333333},{"$f":"TOC!O34","v":1.88},{"$f":"TOC!N34","v":0.2441666667}]
[null,"½ hourly mean","20 mg/m3 ",{"$f":"TOC!M19","v":125},{"$f":"TOC!L19","v":0.2458333333},{"$f":"TOC!M34","v":199.63},{"$f":"TOC!L34","v":0.2933333333}]
["Hydrogen chloride ","Daily mean","8 mg/m3 ",{"$f":"HCl!O19","v":6.8},{"$f":"HCl!N19","v":3.478333333},{"$f":"HCl!O34","v":6.7},{"$f":"HCl!N34","v":3.5275}]
[null,"½ hourly mean","60 mg/m3 ",{"$f":"HCl!M19","v":12.82},{"$f":"HCl!L19","v":3.52},{"$f":"HCl!M34","v":11.75},{"$f":"HCl!L34","v":3.564166667}]
["Sulphur dioxide","Daily mean","40 mg/m3 ",{"$f":"'SO2'!O19","v":22.24},{"$f":"'SO2'!N19","v":2.889166667},{"$f":"'SO2'!O34","v":22.6},{"$f":"'SO2'!N34","v":2.320833333}]
[null,"½ hourly mean","200 mg/m3 ",{"$f":"'SO2'!M19","v":42.84166667},{"$f":"'SO2'!L19","v":3.010833333},{"$f":"'SO2'!M34","v":159.26},{"$f":"'SO2'!L34","v":2.394166667}]
["Carbon monoxide ","Daily mean","50 mg/m3 ",{"$f":"'CO 95% 10 min'!Q17","v":28.19},{"$f":"'CO 95% 10 min'!P17","v":12.57},{"$f":"'CO 95% 10 min'!Q32","v":36.87},{"$f":"'CO 95% 10 min'!P32","v":18.8}]
[null,"95%ile 10-min avg *","150 mg/m3 *",{"$f":"'CO 95% 10 min'!O17","v":1074.73},{"$f":"'CO 95% 10 min'!N17","v":12.61},{"$f":"'CO 95% 10 min'!O32","v":2194.35},{"$f":"'CO 95% 10 min'!N32","v":18.83}]
[" Ammonia","Daily mean","15 mg/m3 ",{"$f":"'NH3'!M19","v":10.68},{"$f":"'NH3'!L19","v":0.5258333333},{"$f":"'NH3'!M34","v":14.07},{"$f":"'NH3'!N34","v":0.8441666667}]
[]
["Comments :"]

{"sheet":"HCl","index":14,"n_rows":79,"n_cols":17,"rows_kept":79,"cut":false,"hidden":false,"merged":[[6,9,18,9],[21,9,33,9],[36,9,48,9],[47,0,47,6],[48,0,51,6],[51,9,63,9],[66,9,78,9],[3,16,7,18],[4,1,4,3],[4,4,4,6],[4,9,4,14],[9,16,11,18],[12,16,15,18],[18,4,18,6]]}
[{"$f":"+'Cover Page'!$B$29","v":"Annual Performance Report 2025"},null,null,null,{"$f":"+'Cover Page'!$B$33","v":"Newhaven Energy Recovery Facility "}]
[]
["Monitoring of Hydrogen Chloride emissions",null,null,"Whole Installation",null,null,"See  Notes in Cell Q3",null,null,{"$f":"+A3","v":"Monitoring of Hydrogen Chloride emissions"},null,null,null,"Per Combustion Line",null,null,"Notes:"]
[null,null,null,null,null,null,null,null,null,null,null,null,null,null,null,null,"User to add logic to complete Whole installation, Table A5:G18. From the data in Per Combustion Line, Table J6:O79, subject to No. of lines installed"]
[{"$f":"+'Cover Page'!C39","v":2025},"1/2 Hourly Reference Periods",null,null,"Daily Reference Periods"]
["mg/Nm3","1/2 hourly HCl ELV","Monthly mean of half-hourly averages","Highest half- hourly average","Daily HCl ELV","Monthly mean of  daily averages","Highest daily average",null,null,{"$f":"+A5","v":2025},"mg/Nm3","Monthly mean of half-hourly averages","Highest half- hourly average","Monthly mean of  daily averages","Highest daily average"]
["Jan",60.0,{"$f":"AVERAGE(L7,L22)","v":2.955},{"$f":"MAX(M7,M22)","v":7.43},8.0,{"$f":"AVERAGE(N7,N22)","v":2.94},{"$f":"MAX(O7,O22)","v":4.89},null,null,"A1","Jan",2.93,7.43,2.93,4.89]
["Feb",60.0,3.595,9.19,8.0,3.56,5.09,null,null,null,"Feb",3.75,9.19,3.71,5.09]
["Mar",60.0,5.2,9.41,8.0,5.18,6.7,null,null,null,"Mar",4.91,8.56,4.9,6.65,null,"Whole Installation table A5:G18:"]
["Apr",60.0,5.12,12.82,8.0,5.07,6.8,null,null,null,"Apr",5.4,12.82,5.37,6.8,null,"Mean: for 1/2 hourly and daily periods calculate mean of values across all operational combustion lines for the month"]
["May",60.0,3.445,8.87,8.0,3.37,6.62,null,null,null,"May",4.56,8.87,4.46,6.62]
["Jun",60.0,2.82,9.59,8.0,2.8,4.9,null,null,null,"Jun",2.43,9.59,2.42,4.71]
["Jul",60.0,3.405,9.32,8.0,3.37,4.89,null,null,null,"Jul",3.62,9.32,3.58,4.89,null,"Maximum: for 1/2 hourly and daily periods use the highest value across all operational combustion lines for the month"]
["Aug",60.0,3.545,8.51,8.0,3.5,5.7,null,null,null,"Aug",3.54,7.93,3.49,5.7]
["Sep",60.0,3.755,10.37,8.0,3.73,6.27,null,null,null,"Sep",3.59,9.1,3.57,6.27]
["Oct",60.0,3.185,11.75,8.0,3.155,4.35,null,null,null,"Oct",2.73,8.01,2.7,4.27]
["Nov",60.0,2.77,6.98,8.0,2.69,4.37,null,null,null,"Nov",2.28,6.98,2.15,3.95]
["Dec",60.0,2.71,7.67,8.0,2.67,4.31,null,null,null,"Dec",2.5,7.67,2.46,3.7]
[null,null,null,null,null,null,null,null,null,null,"Annual",{"$f":"AVERAGE(L7:L18)","v":3.52},{"$f":"MAX(M7:M18)","v":12.82},{"$f":"AVERAGE(N7:N18)","v":3.478333333},{"$f":"MAX(O7:O18)","v":6.8}]
[]
[null,null,null,null,null,null,null,null,null,{"$f":"+A5","v":2025},"mg/Nm3","Monthly mean of half-hourly averages","Highest half- hourly average","Monthly mean of  daily averages","Highest daily average"]
[null,null,null,null,null,null,null,null,null,"A2","Jan",2.98,6.74,2.95,4.07]
[null,null,null,null,null,null,null,null,null,null,"Feb",3.44,9.13,3.41,4.97]
[null,null,null,null,null,null,null,null,null,null,"Mar",5.49,9.41,5.46,6.7]
[null,null,null,null,null,null,null,null,null,null,"Apr",4.84,9.91,4.77,6.2]
[null,null,null,null,null,null,null,null,null,null,"May",2.33,6.67,2.28,4.42]
[null,null,null,null,null,null,null,null,null,null,"Jun",3.21,9.59,3.18,4.9]
[null,null,null,null,null,null,null,null,null,null,"Jul",3.19,9.12,3.16,4.1]
[null,null,null,null,null,null,null,null,null,null,"Aug",3.55,8.51,3.51,4.64]
[null,null,null,null,null,null,null,null,null,null,"Sep",3.92,10.37,3.89,5.0]
[null,null,null,null,null,null,null,null,null,null,"Oct",3.64,11.75,3.61,4.35]
[null,null,null,null,null,null,null,null,null,null,"Nov",3.26,6.42,3.23,4.37]
[null,null,null,null,null,null,null,null,null,null,"Dec",2.92,7.11,2.88,4.31]
[null,null,null,null,null,null,null,null,null,null,"Annual",{"$f":"AVERAGE(L22:L33)","v":3.564166667},{"$f":"MAX(M22:M33)","v":11.75},{"$f":"AVERAGE(N22:N33)","v":3.5275},{"$f":"MAX(O22:O33)","v":6.7}]
[]
[null,null,null,null,null,null,null,null,null,{"$f":"+A5","v":2025},"mg/Nm3","Monthly mean of half-hourly averages","Highest half- hourly average","Monthly mean of  daily averages","Highest daily average"]
[null,null,null,null,null,null,null,null,null,"A3","Jan"]
[null,null,null,null,null,null,null,null,null,null,"Feb"]
[null,null,null,null,null,null,null,null,null,null,"Mar"]
[null,null,null,null,null,null,null,null,null,null,"Apr"]
[null,null,null,null,null,null,null,null,null,null,"May"]
[null,null,null,null,null,null,null,null,null,null,"Jun"]
[null,null,null,null,null,null,null,null,null,null,"Jul"]
[null,null,null,null,null,null,null,null,null,null,"Aug"]
[null,null,null,null,null,null,null,null,null,null,"Sep"]
[null,null,null,null,null,null,null,null,null,null,"Oct"]
[null,null,null,null,null,null,null,null,null,null,"Nov"]
["Comments :",null,null,null,null,null,null,null,null,null,"Dec"]
[null,null,null,null,null,null,null,null,null,null,"Annual",{"$f":"AVERAGE(L37:L48)","v":"#DIV/0!"},{"$f":"MAX(M37:M48)","v":0},{"$f":"AVERAGE(N37:N48)","v":"#DIV/0!"},{"$f":"MAX(O37:O48)","v":0}]
[]
[null,null,null,null,null,null,null,null,null,{"$f":"+A5","v":2025},"mg/Nm3","Monthly mean of half-hourly averages","Highest half- hourly average","Monthly mean of  daily averages","Highest daily average"]
[null,null,null,null,null,null,null,null,null,"A4","Jan"]
[null,null,null,null,null,null,null,null,null,null,"Feb"]
[null,null,null,null,null,null,null,null,null,null,"Mar"]
[null,null,null,null,null,null,null,null,null,null,"Apr"]
[null,null,null,null,null,null,null,null,null,null,"May"]
[null,null,null,null,null,null,null,null,null,null,"Jun"]
[null,null,null,null,null,null,null,null,null,null,"Jul"]
[null,null,null,null,null,null,null,null,null,null,"Aug"]
[null,null,null,null,null,null,null,null,null,null,"Sep"]
[null,null,null,null,null,null,null,null,null,null,"Oct"]
[null,null,null,null,null,null,null,null,null,null,"Nov"]
[null,null,null,null,null,null,null,null,null,null,"Dec"]
[null,null,null,null,null,null,null,null,null,null,"Annual",{"$f":"AVERAGE(L52:L63)","v":"#DIV/0!"},{"$f":"MAX(M52:M63)","v":0},{"$f":"AVERAGE(N52:N63)","v":"#DIV/0!"},{"$f":"MAX(O52:O63)","v":0}]
[]
[null,null,null,null,null,null,null,null,null,{"$f":"+A5","v":2025},"mg/Nm3","Monthly mean of half-hourly averages","Highest half- hourly average","Monthly mean of  daily averages","Highest daily average"]
[null,null,null,null,null,null,null,null,null,"A5","Jan"]
[null,null,null,null,null,null,null,null,null,null,"Feb"]
[null,null,null,null,null,null,null,null,null,null,"Mar"]
[null,null,null,null,null,null,null,null,null,null,"Apr"]
[null,null,null,null,null,null,null,null,null,null,"May"]
[null,null,null,null,null,null,null,null,null,null,"Jun"]
[null,null,null,null,null,null,null,null,null,null,"Jul"]
[null,null,null,null,null,null,null,null,null,null,"Aug"]
[null,null,null,null,null,null,null,null,null,null,"Sep"]
[null,null,null,null,null,null,null,null,null,null,"Oct"]
[null,null,null,null,null,null,null,null,null,null,"Nov"]
[null,null,null,null,null,null,null,null,null,null,"Dec"]
[null,null,null,null,null,null,null,null,null,null,"Annual",{"$f":"AVERAGE(L67:L78)","v":"#DIV/0!"},{"$f":"MAX(M67:M78)","v":0},{"$f":"AVERAGE(N67:N78)","v":"#DIV/0!"},{"$f":"MAX(O67:O78)","v":0}]

{"sheet":"SO2","index":15,"n_rows":79,"n_cols":17,"rows_kept":79,"cut":false,"hidden":false,"merged":[[6,9,18,9],[21,9,33,9],[36,9,48,9],[47,0,47,6],[48,0,51,6],[51,9,63,9],[66,9,78,9],[3,16,7,18],[4,1,4,3],[4,4,4,6],[4,9,4,14],[9,16,11,18],[12,16,15,18],[18,4,18,6]]}
[{"$f":"+'Cover Page'!$B$29","v":"Annual Performance Report 2025"},null,null,null,{"$f":"+'Cover Page'!$B$33","v":"Newhaven Energy Recovery Facility "}]
[]
["Monitoring of Sulphur dioxide emissions",null,null,"Whole Installation",null,null,"See  Notes in Cell Q3",null,null,{"$f":"+A3","v":"Monitoring of Sulphur dioxide emissions"},null,null,null,"Per Combustion Line",null,null,"Notes:"]
[null,null,null,null,null,null,null,null,null,null,null,null,null,null,null,null,"User to add logic to complete Whole installation, Table A5:G18. From the data in Per Combustion Line, Table J6:O79, subject to No. of lines installed"]
[{"$f":"+'Cover Page'!C39","v":2025},"1/2 Hourly Reference Periods",null,null,"Daily Reference Periods"]
["mg/Nm3","1/2 hourly SO2 ELV","Monthly mean of half-hourly averages","Highest half- hourly average","Daily SO2 ELV","Monthly mean of  daily averages","Highest daily average",null,null,{"$f":"+A5","v":2025},"mg/Nm3","Monthly mean of half-hourly averages","Highest half- hourly average","Monthly mean of  daily averages","Highest daily average"]
["Jan",200.0,{"$f":"AVERAGE(L7,L22)","v":1.44},{"$f":"MAX(M7,M22)","v":46.9},40.0,{"$f":"AVERAGE(N7,N22)","v":1.41},{"$f":"MAX(O7,O22)","v":10.09},null,null,"A1","Jan",0.33,17.88,0.3,2.58]
["Feb",200.0,0.78,37.63,40.0,0.75,7.2,null,null,null,"Feb",0.24,13.82,0.21,0.75]
["Mar",200.0,0.66,61.26,40.0,0.39,4.98,null,null,null,"Mar",1.17,61.26,0.66,4.98,null,"Whole Installation table A5:G18:"]
["Apr",200.0,0.39,21.67,40.0,0.355,2.85,null,null,null,"Apr",0.26,21.67,0.23,1.48,null,"Mean: for 1/2 hourly and daily periods calculate mean of values across all operational combustion lines for the month"]
["May",200.0,6.24,87.04,40.0,6.075,22.6,null,null,null,"May",4.7,84.87,4.69,22.24]
["Jun",200.0,4.785,54.71,40.0,4.65,19.69,null,null,null,"Jun",6.68,54.71,6.44,19.69]
["Jul",200.0,1.155,32.66,40.0,1.12,8.04,null,null,null,"Jul",0.66,21.73,0.63,2.22,null,"Maximum: for 1/2 hourly and daily periods use the highest value across all operational combustion lines for the month"]
["Aug",200.0,2.655,43.57,40.0,2.56,6.89,null,null,null,"Aug",2.73,43.57,2.64,6.89]
["Sep",200.0,3.735,48.36,40.0,3.58,14.97,null,null,null,"Sep",5.64,48.36,5.49,14.97]
["Oct",200.0,3.4,36.25,40.0,3.37,10.35,null,null,null,"Oct",5.21,36.25,5.18,10.35]
["Nov",200.0,3.77,54.75,40.0,3.605,15.48,null,null,null,"Nov",5.72,54.75,5.43,15.48]
["Dec",200.0,3.42,159.26,40.0,3.395,19.03,null,null,null,"Dec",2.79,55.23,2.77,14.18]
[null,null,null,null,null,null,null,null,null,null,"Annual",{"$f":"AVERAGE(L7:L18)","v":3.010833333},42.84166667,2.889166667,{"$f":"MAX(O7:O18)","v":22.24}]
[]
[null,null,null,null,null,null,null,null,null,{"$f":"+A5","v":2025},"mg/Nm3","Monthly mean of half-hourly averages","Highest half- hourly average","Monthly mean of  daily averages","Highest daily average"]
[null,null,null,null,null,null,null,null,null,"A2","Jan",2.55,46.9,2.52,10.09]
[null,null,null,null,null,null,null,null,null,null,"Feb",1.32,37.63,1.29,7.2]
[null,null,null,null,null,null,null,null,null,null,"Mar",0.15,8.15,0.12,0.64]
[null,null,null,null,null,null,null,null,null,null,"Apr",0.52,19.86,0.48,2.85]
[null,null,null,null,null,null,null,null,null,null,"May",7.78,87.04,7.46,22.6]
[null,null,null,null,null,null,null,null,null,null,"Jun",2.89,34.58,2.86,14.09]
[null,null,null,null,null,null,null,null,null,null,"Jul",1.65,32.66,1.61,8.04]
[null,null,null,null,null,null,null,null,null,null,"Aug",2.58,28.77,2.48,4.09]
[null,null,null,null,null,null,null,null,null,null,"Sep",1.83,29.4,1.67,2.92]
[null,null,null,null,null,null,null,null,null,null,"Oct",1.59,27.91,1.56,2.89]
[null,null,null,null,null,null,null,null,null,null,"Nov",1.82,31.93,1.78,5.5]
[null,null,null,null,null,null,null,null,null,null,"Dec",4.05,159.26,4.02,19.03]
[null,null,null,null,null,null,null,null,null,null,"Annual",{"$f":"AVERAGE(L22:L33)","v":2.394166667},{"$f":"MAX(M22:M33)","v":159.26},{"$f":"AVERAGE(N22:N33)","v":2.320833333},{"$f":"MAX(O22:O33)","v":22.6}]
[]
[null,null,null,null,null,null,null,null,null,{"$f":"+A5","v":2025},"mg/Nm3","Monthly mean of half-hourly averages","Highest half- hourly average","Monthly mean of  daily averages","Highest daily average"]
[null,null,null,null,null,null,null,null,null,"A3","Jan"]
[null,null,null,null,null,null,null,null,null,null,"Feb"]
[null,null,null,null,null,null,null,null,null,null,"Mar"]
[null,null,null,null,null,null,null,null,null,null,"Apr"]
[null,null,null,null,null,null,null,null,null,null,"May"]
[null,null,null,null,null,null,null,null,null,null,"Jun"]
[null,null,null,null,null,null,null,null,null,null,"Jul"]
[null,null,null,null,null,null,null,null,null,null,"Aug"]
[null,null,null,null,null,null,null,null,null,null,"Sep"]
[null,null,null,null,null,null,null,null,null,null,"Oct"]
[null,null,null,null,null,null,null,null,null,null,"Nov"]
["Comments :",null,null,null,null,null,null,null,null,null,"Dec"]
[null,null,null,null,null,null,null,null,null,null,"Annual",{"$f":"AVERAGE(L37:L48)","v":"#DIV/0!"},{"$f":"MAX(M37:M48)","v":0},{"$f":"AVERAGE(N37:N48)","v":"#DIV/0!"},{"$f":"MAX(O37:O48)","v":0}]
[]
[null,null,null,null,null,null,null,null,null,{"$f":"+A5","v":2025},"mg/Nm3","Monthly mean of half-hourly averages","Highest half- hourly average","Monthly mean of  daily averages","Highest daily average"]
[null,null,null,null,null,null,null,null,null,"A4","Jan"]
[null,null,null,null,null,null,null,null,null,null,"Feb"]
[null,null,null,null,null,null,null,null,null,null,"Mar"]
[null,null,null,null,null,null,null,null,null,null,"Apr"]
[null,null,null,null,null,null,null,null,null,null,"May"]
[null,null,null,null,null,null,null,null,null,null,"Jun"]
[null,null,null,null,null,null,null,null,null,null,"Jul"]
[null,null,null,null,null,null,null,null,null,null,"Aug"]
[null,null,null,null,null,null,null,null,null,null,"Sep"]
[null,null,null,null,null,null,null,null,null,null,"Oct"]
[null,null,null,null,null,null,null,null,null,null,"Nov"]
[null,null,null,null,null,null,null,null,null,null,"Dec"]
[null,null,null,null,null,null,null,null,null,null,"Annual",{"$f":"AVERAGE(L52:L63)","v":"#DIV/0!"},{"$f":"MAX(M52:M63)","v":0},{"$f":"AVERAGE(N52:N63)","v":"#DIV/0!"},{"$f":"MAX(O52:O63)","v":0}]
[]
[null,null,null,null,null,null,null,null,null,{"$f":"+A5","v":2025},"mg/Nm3","Monthly mean of half-hourly averages","Highest half- hourly average","Monthly mean of  daily averages","Highest daily average"]
[null,null,null,null,null,null,null,null,null,"A5","Jan"]
[null,null,null,null,null,null,null,null,null,null,"Feb"]
[null,null,null,null,null,null,null,null,null,null,"Mar"]
[null,null,null,null,null,null,null,null,null,null,"Apr"]
[null,null,null,null,null,null,null,null,null,null,"May"]
[null,null,null,null,null,null,null,null,null,null,"Jun"]
[null,null,null,null,null,null,null,null,null,null,"Jul"]
[null,null,null,null,null,null,null,null,null,null,"Aug"]
[null,null,null,null,null,null,null,null,null,null,"Sep"]
[null,null,null,null,null,null,null,null,null,null,"Oct"]
[null,null,null,null,null,null,null,null,null,null,"Nov"]
[null,null,null,null,null,null,null,null,null,null,"Dec"]
[null,null,null,null,null,null,null,null,null,null,"Annual",{"$f":"AVERAGE(L67:L78)","v":"#DIV/0!"},{"$f":"MAX(M67:M78)","v":0},{"$f":"AVERAGE(N67:N78)","v":"#DIV/0!"},{"$f":"MAX(O67:O78)","v":0}]

{"sheet":"NOx","index":16,"n_rows":79,"n_cols":17,"rows_kept":79,"cut":false,"hidden":false,"merged":[[6,9,18,9],[21,9,33,9],[36,9,48,9],[47,0,47,6],[48,0,51,6],[51,9,63,9],[66,9,78,9],[3,16,7,18],[4,1,4,3],[4,4,4,6],[4,9,4,14],[9,16,11,18],[12,16,15,18],[18,4,18,6]]}
[{"$f":"+'Cover Page'!$B$29","v":"Annual Performance Report 2025"},null,null,null,{"$f":"+'Cover Page'!$B$33","v":"Newhaven Energy Recovery Facility "}]
[]
["Monitoring of Oxides of Nitrogen emissions",null,null,"Whole Installation",null,null,"See  Notes in Cell Q3",null,null,{"$f":"+A3","v":"Monitoring of Oxides of Nitrogen emissions"},null,null,null,"Per Combustion Line",null,null,"Notes:"]
[null,null,null,null,null,null,null,null,null,null,null,null,null,null,null,null,"User to add logic to complete Whole installation, Table A5:G18. From the data in Per Combustion Line, Table J6:O79, subject to No. of lines installed"]
[{"$f":"+'Cover Page'!C39","v":2025},"1/2 Hourly Reference Periods",null,null,"Daily Reference Periods"]
["mg/Nm3","1/2 hourly NOx ELV","Monthly mean of half-hourly averages","Highest half- hourly average","Daily NOx ELV","Monthly mean of  daily averages","Highest daily average",null,null,{"$f":"+A5","v":2025},"mg/Nm3","Monthly mean of half-hourly averages","Highest half- hourly average","Monthly mean of  daily averages","Highest daily average"]
["Jan",400.0,{"$f":"AVERAGE(L7,L22)","v":169.415},{"$f":"MAX(M7,M22)","v":202.52},180.0,{"$f":"AVERAGE(N7,N22)","v":169.425},{"$f":"MAX(O7,O22)","v":171.73},null,null,"A1","Jan",169.22,202.52,169.27,171.06]
["Feb",400.0,169.205,202.25,180.0,169.175,171.16,null,null,null,"Feb",168.93,202.25,168.9,170.01]
["Mar",400.0,169.18,206.73,180.0,169.115,171.09,null,null,null,"Mar",168.68,200.26,168.58,169.8,null,"Whole Installation table A5:G18:"]
["Apr",400.0,169.085,213.69,180.0,169.05,171.62,null,null,null,"Apr",168.48,209.94,168.44,170.9,null,"Mean: for 1/2 hourly and daily periods calculate mean of values across all operational combustion lines for the month"]
["May",400.0,169.405,221.98,180.0,169.315,172.47,null,null,null,"May",169.09,221.98,168.98,172.47]
["Jun",400.0,169.45,216.27,180.0,169.375,171.35,null,null,null,"Jun",169.61,213.76,169.49,171.35]
["Jul",400.0,169.545,230.84,180.0,169.515,171.29,null,null,null,"Jul",169.55,215.1,169.52,171.29,null,"Maximum: for 1/2 hourly and daily periods use the highest value across all operational combustion lines for the month"]
["Aug",400.0,168.955,212.47,180.0,168.975,171.21,null,null,null,"Aug",168.67,208.83,168.73,170.67]
["Sep",400.0,168.96,208.76,180.0,168.99,171.8,null,null,null,"Sep",168.43,206.28,168.5,171.8]
["Oct",400.0,168.94,227.01,180.0,168.91,171.17,null,null,null,"Oct",168.32,206.55,168.29,170.57]
["Nov",400.0,167.885,207.92,180.0,167.845,171.12,null,null,null,"Nov",166.69,199.63,166.65,170.81]
["Dec",400.0,164.765,217.72,180.0,164.74,171.78,null,null,null,"Dec",163.19,217.15,163.16,167.26]
[null,null,null,null,null,null,null,null,null,null,"Annual",{"$f":"AVERAGE(L7:L18)","v":168.2383333},{"$f":"MAX(M7:M18)","v":221.98},{"$f":"AVERAGE(N7:N18)","v":168.2091667},{"$f":"MAX(O7:O18)","v":172.47}]
[]
[null,null,null,null,null,null,null,null,null,{"$f":"+A5","v":2025},"mg/Nm3","Monthly mean of half-hourly averages","Highest half- hourly average","Monthly mean of  daily averages","Highest daily average"]
[null,null,null,null,null,null,null,null,null,"A2","Jan",169.61,200.58,169.58,171.73]
[null,null,null,null,null,null,null,null,null,null,"Feb",169.48,201.12,169.45,171.16]
[null,null,null,null,null,null,null,null,null,null,"Mar",169.68,206.73,169.65,171.09]
[null,null,null,null,null,null,null,null,null,null,"Apr",169.69,213.69,169.66,171.62]
[null,null,null,null,null,null,null,null,null,null,"May",169.72,209.67,169.65,170.86]
[null,null,null,null,null,null,null,null,null,null,"Jun",169.29,216.27,169.26,171.27]
[null,null,null,null,null,null,null,null,null,null,"Jul",169.54,230.84,169.51,171.1]
[null,null,null,null,null,null,null,null,null,null,"Aug",169.24,212.47,169.22,171.21]
[null,null,null,null,null,null,null,null,null,null,"Sep",169.49,208.76,169.48,171.25]
[null,null,null,null,null,null,null,null,null,null,"Oct",169.56,227.01,169.53,171.17]
[null,null,null,null,null,null,null,null,null,null,"Nov",169.08,207.92,169.04,171.12]
[null,null,null,null,null,null,null,null,null,null,"Dec",166.34,217.72,166.32,171.78]
[null,null,null,null,null,null,null,null,null,null,"Annual",{"$f":"AVERAGE(L22:L33)","v":169.2266667},{"$f":"MAX(M22:M33)","v":230.84},{"$f":"AVERAGE(N22:N33)","v":169.1958333},{"$f":"MAX(O22:O33)","v":171.78}]
[]
[null,null,null,null,null,null,null,null,null,{"$f":"+A5","v":2025},"mg/Nm3","Monthly mean of half-hourly averages","Highest half- hourly average","Monthly mean of  daily averages","Highest daily average"]
[null,null,null,null,null,null,null,null,null,"A3","Jan"]
[null,null,null,null,null,null,null,null,null,null,"Feb"]
[null,null,null,null,null,null,null,null,null,null,"Mar"]
[null,null,null,null,null,null,null,null,null,null,"Apr"]
[null,null,null,null,null,null,null,null,null,null,"May"]
[null,null,null,null,null,null,null,null,null,null,"Jun"]
[null,null,null,null,null,null,null,null,null,null,"Jul"]
[null,null,null,null,null,null,null,null,null,null,"Aug"]
[null,null,null,null,null,null,null,null,null,null,"Sep"]
[null,null,null,null,null,null,null,null,null,null,"Oct"]
[null,null,null,null,null,null,null,null,null,null,"Nov"]
["Comments :",null,null,null,null,null,null,null,null,null,"Dec"]
[null,null,null,null,null,null,null,null,null,null,"Annual",{"$f":"AVERAGE(L37:L48)","v":"#DIV/0!"},{"$f":"MAX(M37:M48)","v":0},{"$f":"AVERAGE(N37:N48)","v":"#DIV/0!"},{"$f":"MAX(O37:O48)","v":0}]
[]
[null,null,null,null,null,null,null,null,null,{"$f":"+A5","v":2025},"mg/Nm3","Monthly mean of half-hourly averages","Highest half- hourly average","Monthly mean of  daily averages","Highest daily average"]
[null,null,null,null,null,null,null,null,null,"A4","Jan"]
[null,null,null,null,null,null,null,null,null,null,"Feb"]
[null,null,null,null,null,null,null,null,null,null,"Mar"]
[null,null,null,null,null,null,null,null,null,null,"Apr"]
[null,null,null,null,null,null,null,null,null,null,"May"]
[null,null,null,null,null,null,null,null,null,null,"Jun"]
[null,null,null,null,null,null,null,null,null,null,"Jul"]
[null,null,null,null,null,null,null,null,null,null,"Aug"]
[null,null,null,null,null,null,null,null,null,null,"Sep"]
[null,null,null,null,null,null,null,null,null,null,"Oct"]
[null,null,null,null,null,null,null,null,null,null,"Nov"]
[null,null,null,null,null,null,null,null,null,null,"Dec"]
[null,null,null,null,null,null,null,null,null,null,"Annual",{"$f":"AVERAGE(L52:L63)","v":"#DIV/0!"},{"$f":"MAX(M52:M63)","v":0},{"$f":"AVERAGE(N52:N63)","v":"#DIV/0!"},{"$f":"MAX(O52:O63)","v":0}]
[]
[null,null,null,null,null,null,null,null,null,{"$f":"+A5","v":2025},"mg/Nm3","Monthly mean of half-hourly averages","Highest half- hourly average","Monthly mean of  daily averages","Highest daily average"]
[null,null,null,null,null,null,null,null,null,"A5","Jan"]
[null,null,null,null,null,null,null,null,null,null,"Feb"]
[null,null,null,null,null,null,null,null,null,null,"Mar"]
[null,null,null,null,null,null,null,null,null,null,"Apr"]
[null,null,null,null,null,null,null,null,null,null,"May"]
[null,null,null,null,null,null,null,null,null,null,"Jun"]
[null,null,null,null,null,null,null,null,null,null,"Jul"]
[null,null,null,null,null,null,null,null,null,null,"Aug"]
[null,null,null,null,null,null,null,null,null,null,"Sep"]
[null,null,null,null,null,null,null,null,null,null,"Oct"]
[null,null,null,null,null,null,null,null,null,null,"Nov"]
[null,null,null,null,null,null,null,null,null,null,"Dec"]
[null,null,null,null,null,null,null,null,null,null,"Annual",{"$f":"AVERAGE(L67:L78)","v":"#DIV/0!"},{"$f":"MAX(M67:M78)","v":0},{"$f":"AVERAGE(N67:N78)","v":"#DIV/0!"},{"$f":"MAX(O67:O78)","v":0}]

{"sheet":"TOC","index":17,"n_rows":79,"n_cols":17,"rows_kept":79,"cut":false,"hidden":false,"merged":[[21,9,33,9],[36,9,48,9],[47,0,47,6],[48,0,51,6],[51,9,63,9],[66,9,78,9],[3,16,7,18],[4,1,4,3],[4,4,4,6],[4,9,4,14],[6,9,18,9],[9,16,11,18],[12,16,15,18]]}
[{"$f":"+'Cover Page'!$B$29","v":"Annual Performance Report 2025"},null,null,null,{"$f":"+'Cover Page'!$B$33","v":"Newhaven Energy Recovery Facility "}]
[]
["Monitoring of Total organic carbon emissions",null,null,"Whole Installation",null,null,"See  Notes in Cell Q3",null,null,{"$f":"+A3","v":"Monitoring of Total organic carbon emissions"},null,null,null,"Per Combustion Line",null,null,"Notes:"]
[null,null,null,null,null,null,null,null,null,null,null,null,null,null,null,null,"User to add logic to complete Whole installation, Table A5:G18. From the data in Per Combustion Line, Table J6:O79, subject to No. of lines installed"]
[{"$f":"+'Cover Page'!C39","v":2025},"1/2 Hourly Reference Periods",null,null,"Daily Reference Periods"]
["mg/Nm3","97%ile 1/2 hourly TOC ELV","Monthly mean of half-hourly averages","Highest half- hourly average","Daily TOC ELV","Monthly mean of  daily averages","Highest daily average",null,null,{"$f":"+A5","v":2025},"mg/Nm3","Monthly mean of half-hourly averages","Highest half- hourly average","Monthly mean of  daily averages","Highest daily average"]
["Jan",10.0,{"$f":"AVERAGE(L7,L22)","v":0.225},{"$f":"MAX(M7,M22)","v":5.36},10.0,{"$f":"AVERAGE(N7,N22)","v":0.185},{"$f":"MAX(O7,O22)","v":0.34},null,null,"A1","Jan",0.15,5.36,0.11,0.31]
["Feb",10.0,0.08,9.69,10.0,0.05,0.37,null,null,null,"Feb",0.03,9.69,0.0,0.22]
["Mar",10.0,0.125,18.56,10.0,0.065,0.6,null,null,null,"Mar",0.14,15.89,0.05,0.41,null,"Whole Installation table A5:G18:"]
["Apr",10.0,0.145,9.2,10.0,0.11,0.39,null,null,null,"Apr",0.07,9.2,0.04,0.25,null,"Mean: for 1/2 hourly and daily periods calculate mean of values across all operational combustion lines for the month"]
["May",10.0,0.34,64.04,10.0,0.275,1.43,null,null,null,"May",0.39,64.04,0.33,1.43]
["Jun",10.0,0.27,38.87,10.0,0.235,1.17,null,null,null,"Jun",0.14,3.6,0.1,0.51]
["Jul",10.0,0.25,45.35,10.0,0.22,1.04,null,null,null,"Jul",0.19,45.35,0.16,1.04,null,"Maximum: for 1/2 hourly and daily periods use the highest value across all operational combustion lines for the month"]
["Aug",10.0,0.505,125,10.0,0.47,3.13,null,null,null,"Aug",0.4,125.0,0.36,3.13]
["Sep",10.0,0.345,199.63,10.0,0.22,0.49,null,null,null,"Sep",0.31,32.38,0.26,0.42]
["Oct",10.0,0.345,77.95,10.0,0.315,1.88,null,null,null,"Oct",0.38,18.57,0.35,1.01]
["Nov",10.0,0.335,40.81,10.0,0.3,1.25,null,null,null,"Nov",0.43,40.81,0.39,1.25]
["Dec",10.0,0.27,39.54,10.0,0.24,1.05,null,null,null,"Dec",0.32,15.82,0.29,0.59]
[null,null,null,null,null,null,null,null,null,null,"Annual",{"$f":"AVERAGE(L7:L18)","v":0.2458333333},{"$f":"MAX(M7:M18)","v":125},{"$f":"AVERAGE(N7:N18)","v":0.2033333333},{"$f":"MAX(O7:O18)","v":3.13}]
[]
[null,null,null,null,null,null,null,null,null,{"$f":"+A5","v":2025},"mg/Nm3","Monthly mean of half-hourly averages","Highest half- hourly average","Monthly mean of  daily averages","Highest daily average"]
[null,null,null,null,null,null,null,null,null,"A2","Jan",0.3,2.18,0.26,0.34]
[null,null,null,null,null,null,null,null,null,null,"Feb",0.13,5.33,0.1,0.37]
[null,null,null,null,null,null,null,null,null,null,"Mar",0.11,18.56,0.08,0.6]
[null,null,null,null,null,null,null,null,null,null,"Apr",0.22,3.85,0.18,0.39]
[null,null,null,null,null,null,null,null,null,null,"May",0.29,9.31,0.22,0.51]
[null,null,null,null,null,null,null,null,null,null,"Jun",0.4,38.87,0.37,1.17]
[null,null,null,null,null,null,null,null,null,null,"Jul",0.31,15.06,0.28,0.67]
[null,null,null,null,null,null,null,null,null,null,"Aug",0.61,53.32,0.58,1.46]
[null,null,null,null,null,null,null,null,null,null,"Sep",0.38,199.63,0.18,0.49]
[null,null,null,null,null,null,null,null,null,null,"Oct",0.31,77.95,0.28,1.88]
[null,null,null,null,null,null,null,null,null,null,"Nov",0.24,18.16,0.21,0.6]
[null,null,null,null,null,null,null,null,null,null,"Dec",0.22,39.54,0.19,1.05]
[null,null,null,null,null,null,null,null,null,null,"Annual",{"$f":"AVERAGE(L22:L33)","v":0.2933333333},{"$f":"MAX(M22:M33)","v":199.63},{"$f":"AVERAGE(N22:N33)","v":0.2441666667},{"$f":"MAX(O22:O33)","v":1.88}]
[]
[null,null,null,null,null,null,null,null,null,{"$f":"+A5","v":2025},"mg/Nm3","Monthly mean of half-hourly averages","Highest half- hourly average","Monthly mean of  daily averages","Highest daily average"]
[null,null,null,null,null,null,null,null,null,"A3","Jan"]
[null,null,null,null,null,null,null,null,null,null,"Feb"]
[null,null,null,null,null,null,null,null,null,null,"Mar"]
[null,null,null,null,null,null,null,null,null,null,"Apr"]
[null,null,null,null,null,null,null,null,null,null,"May"]
[null,null,null,null,null,null,null,null,null,null,"Jun"]
[null,null,null,null,null,null,null,null,null,null,"Jul"]
[null,null,null,null,null,null,null,null,null,null,"Aug"]
[null,null,null,null,null,null,null,null,null,null,"Sep"]
[null,null,null,null,null,null,null,null,null,null,"Oct"]
[null,null,null,null,null,null,null,null,null,null,"Nov"]
["Comments :",null,null,null,null,null,null,null,null,null,"Dec"]
[null,null,null,null,null,null,null,null,null,null,"Annual",{"$f":"AVERAGE(L37:L48)","v":"#DIV/0!"},{"$f":"MAX(M37:M48)","v":0},{"$f":"AVERAGE(N37:N48)","v":"#DIV/0!"},{"$f":"MAX(O37:O48)","v":0}]
[]
[null,null,null,null,null,null,null,null,null,{"$f":"+A5","v":2025},"mg/Nm3","Monthly mean of half-hourly averages","Highest half- hourly average","Monthly mean of  daily averages","Highest daily average"]
[null,null,null,null,null,null,null,null,null,"A4","Jan"]
[null,null,null,null,null,null,null,null,null,null,"Feb"]
[null,null,null,null,null,null,null,null,null,null,"Mar"]
[null,null,null,null,null,null,null,null,null,null,"Apr"]
[null,null,null,null,null,null,null,null,null,null,"May"]
[null,null,null,null,null,null,null,null,null,null,"Jun"]
[null,null,null,null,null,null,null,null,null,null,"Jul"]
[null,null,null,null,null,null,null,null,null,null,"Aug"]
[null,null,null,null,null,null,null,null,null,null,"Sep"]
[null,null,null,null,null,null,null,null,null,null,"Oct"]
[null,null,null,null,null,null,null,null,null,null,"Nov"]
[null,null,null,null,null,null,null,null,null,null,"Dec"]
[null,null,null,null,null,null,null,null,null,null,"Annual",{"$f":"AVERAGE(L52:L63)","v":"#DIV/0!"},{"$f":"MAX(M52:M63)","v":0},{"$f":"AVERAGE(N52:N63)","v":"#DIV/0!"},{"$f":"MAX(O52:O63)","v":0}]
[]
[null,null,null,null,null,null,null,null,null,{"$f":"+A5","v":2025},"mg/Nm3","Monthly mean of half-hourly averages","Highest half- hourly average","Monthly mean of  daily averages","Highest daily average"]
[null,null,null,null,null,null,null,null,null,"A5","Jan"]
[null,null,null,null,null,null,null,null,null,null,"Feb"]
[null,null,null,null,null,null,null,null,null,null,"Mar"]
[null,null,null,null,null,null,null,null,null,null,"Apr"]
[null,null,null,null,null,null,null,null,null,null,"May"]
[null,null,null,null,null,null,null,null,null,null,"Jun"]
[null,null,null,null,null,null,null,null,null,null,"Jul"]
[null,null,null,null,null,null,null,null,null,null,"Aug"]
[null,null,null,null,null,null,null,null,null,null,"Sep"]
[null,null,null,null,null,null,null,null,null,null,"Oct"]
[null,null,null,null,null,null,null,null,null,null,"Nov"]
[null,null,null,null,null,null,null,null,null,null,"Dec"]
[null,null,null,null,null,null,null,null,null,null,"Annual",{"$f":"AVERAGE(L67:L78)","v":"#DIV/0!"},{"$f":"MAX(M67:M78)","v":0},{"$f":"AVERAGE(N67:N78)","v":"#DIV/0!"},{"$f":"MAX(O67:O78)","v":0}]

{"sheet":"Particulates","index":18,"n_rows":79,"n_cols":17,"rows_kept":79,"cut":false,"hidden":false,"merged":[[6,9,18,9],[21,9,33,9],[36,9,48,9],[47,0,47,6],[48,0,51,6],[51,9,63,9],[66,9,78,9],[4,1,4,3],[4,4,4,6],[4,9,4,14],[4,16,8,18],[10,16,12,18],[13,16,16,18],[18,4,18,6]]}
[{"$f":"+'Cover Page'!$B$29","v":"Annual Performance Report 2025"},null,null,null,{"$f":"+'Cover Page'!$B$33","v":"Newhaven Energy Recovery Facility "}]
[]
["Monitoring of Particulate matter emissions",null,null,"Whole Installation",null,null,"See  Notes in Cell Q3",null,null,{"$f":"+A3","v":"Monitoring of Particulate matter emissions"},null,null,null,"Per Combustion Line",null,null,"Notes:"]
[]
[{"$f":"+'Cover Page'!C39","v":2025},"1/2 Hourly Reference Periods",null,null,"Daily Reference Periods",null,null,null,null,null,null,null,null,null,null,null,"User to add logic to complete Whole installation, Table A5:G18. From the data in Per Combustion Line, Table J6:O79, subject to No. of lines installed"]
["mg/Nm3","1/2 hourly PM ELV","Monthly mean of half-hourly averages","Highest half- hourly average","Daily PM ELV","Monthly mean of  daily averages","Highest daily average",null,null,{"$f":"+A5","v":2025},"mg/Nm3","Monthly mean of half-hourly averages","Highest half- hourly average","Monthly mean of  daily averages","Highest daily average"]
["Jan",30.0,{"$f":"AVERAGE(L7,L22)","v":1.57},{"$f":"MAX(M7,M22)","v":3.07},5.0,{"$f":"AVERAGE(N7,N22)","v":1.535},{"$f":"MAX(O7,O22)","v":2.32},null,null,"A1","Jan",1.23,1.95,1.19,1.43]
["Feb",30.0,1.65,5.84,5.0,1.62,2.37,null,null,null,"Feb",1.28,2.5,1.25,1.67]
["Mar",30.0,1.58,4.37,5.0,1.53,2.4,null,null,null,"Mar",1.13,4.37,1.07,1.92]
["Apr",30.0,1.575,3.75,5.0,1.545,2.54,null,null,null,"Apr",1.22,2.99,1.19,1.58,null,"Whole Installation table A5:G18:"]
["May",30.0,0.77,8.02,5.0,0.69,1.37,null,null,null,"May",0.94,4.92,0.88,1.28,null,"Mean: for 1/2 hourly and daily periods calculate mean of values across all operational combustion lines for the month"]
["Jun",30.0,0.705,1.83,5.0,0.675,1.38,null,null,null,"Jun",0.9,1.83,0.87,1.38]
["Jul",30.0,1.155,4.66,5.0,1.125,2.49,null,null,null,"Jul",1.47,3.55,1.44,2.49]
["Aug",30.0,1.42,3.46,5.0,1.395,2.13,null,null,null,"Aug",1.81,3.46,1.79,2.13,null,"Maximum: for 1/2 hourly and daily periods use the highest value across all operational combustion lines for the month"]
["Sep",30.0,1.64,7.45,5.0,1.615,2.92,null,null,null,"Sep",2.13,4.81,2.1,2.92]
["Oct",30.0,1.565,4.12,5.0,1.535,2.24,null,null,null,"Oct",1.95,4.12,1.92,2.24]
["Nov",30.0,1.685,4.49,5.0,1.665,2.82,null,null,null,"Nov",2.02,4.49,2.01,2.82]
["Dec",30.0,1.84,5.51,5.0,1.81,3.59,null,null,null,"Dec",2.57,5.51,2.54,3.59]
[null,null,null,null,null,null,null,null,null,null,"Annual",{"$f":"AVERAGE(L7:L18)","v":1.554166667},{"$f":"MAX(M7:M18)","v":5.51},{"$f":"AVERAGE(N7:N18)","v":1.520833333},{"$f":"MAX(O7:O18)","v":3.59}]
[]
[null,null,null,null,null,null,null,null,null,{"$f":"+A5","v":2025},"mg/Nm3","Monthly mean of half-hourly averages","Highest half- hourly average","Monthly mean of  daily averages","Highest daily average"]
[null,null,null,null,null,null,null,null,null,"A2","Jan",1.91,3.07,1.88,2.32]
[null,null,null,null,null,null,null,null,null,null,"Feb",2.02,5.84,1.99,2.37]
[null,null,null,null,null,null,null,null,null,null,"Mar",2.03,3.66,1.99,2.4]
[null,null,null,null,null,null,null,null,null,null,"Apr",1.93,3.75,1.9,2.54]
[null,null,null,null,null,null,null,null,null,null,"May",0.6,8.02,0.5,1.37]
[null,null,null,null,null,null,null,null,null,null,"Jun",0.51,1.15,0.48,0.77]
[null,null,null,null,null,null,null,null,null,null,"Jul",0.84,4.66,0.81,1.32]
[null,null,null,null,null,null,null,null,null,null,"Aug",1.03,2.71,1.0,1.52]
[null,null,null,null,null,null,null,null,null,null,"Sep",1.15,7.45,1.13,1.7]
[null,null,null,null,null,null,null,null,null,null,"Oct",1.18,2.07,1.15,1.48]
[null,null,null,null,null,null,null,null,null,null,"Nov",1.35,4.09,1.32,1.73]
[null,null,null,null,null,null,null,null,null,null,"Dec",1.11,4.34,1.08,1.45]
[null,null,null,null,null,null,null,null,null,null,"Annual",{"$f":"AVERAGE(L22:L33)","v":1.305},{"$f":"MAX(M22:M33)","v":8.02},{"$f":"AVERAGE(N22:N33)","v":1.269166667},{"$f":"MAX(O22:O33)","v":2.54}]
[]
[null,null,null,null,null,null,null,null,null,{"$f":"+A5","v":2025},"mg/Nm3","Monthly mean of half-hourly averages","Highest half- hourly average","Monthly mean of  daily averages","Highest daily average"]
[null,null,null,null,null,null,null,null,null,"A3","Jan"]
[null,null,null,null,null,null,null,null,null,null,"Feb"]
[null,null,null,null,null,null,null,null,null,null,"Mar"]
[null,null,null,null,null,null,null,null,null,null,"Apr"]
[null,null,null,null,null,null,null,null,null,null,"May"]
[null,null,null,null,null,null,null,null,null,null,"Jun"]
[null,null,null,null,null,null,null,null,null,null,"Jul"]
[null,null,null,null,null,null,null,null,null,null,"Aug"]
[null,null,null,null,null,null,null,null,null,null,"Sep"]
[null,null,null,null,null,null,null,null,null,null,"Oct"]
[null,null,null,null,null,null,null,null,null,null,"Nov"]
["Comments :",null,null,null,null,null,null,null,null,null,"Dec"]
[null,null,null,null,null,null,null,null,null,null,"Annual",{"$f":"AVERAGE(L37:L48)","v":"#DIV/0!"},{"$f":"MAX(M37:M48)","v":0},{"$f":"AVERAGE(N37:N48)","v":"#DIV/0!"},{"$f":"MAX(O37:O48)","v":0}]
[]
[null,null,null,null,null,null,null,null,null,{"$f":"+A5","v":2025},"mg/Nm3","Monthly mean of half-hourly averages","Highest half- hourly average","Monthly mean of  daily averages","Highest daily average"]
[null,null,null,null,null,null,null,null,null,"A4","Jan"]
[null,null,null,null,null,null,null,null,null,null,"Feb"]
[null,null,null,null,null,null,null,null,null,null,"Mar"]
[null,null,null,null,null,null,null,null,null,null,"Apr"]
[null,null,null,null,null,null,null,null,null,null,"May"]
[null,null,null,null,null,null,null,null,null,null,"Jun"]
[null,null,null,null,null,null,null,null,null,null,"Jul"]
[null,null,null,null,null,null,null,null,null,null,"Aug"]
[null,null,null,null,null,null,null,null,null,null,"Sep"]
[null,null,null,null,null,null,null,null,null,null,"Oct"]
[null,null,null,null,null,null,null,null,null,null,"Nov"]
[null,null,null,null,null,null,null,null,null,null,"Dec"]
[null,null,null,null,null,null,null,null,null,null,"Annual",{"$f":"AVERAGE(L52:L63)","v":"#DIV/0!"},{"$f":"MAX(M52:M63)","v":0},{"$f":"AVERAGE(N52:N63)","v":"#DIV/0!"},{"$f":"MAX(O52:O63)","v":0}]
[]
[null,null,null,null,null,null,null,null,null,{"$f":"+A5","v":2025},"mg/Nm3","Monthly mean of half-hourly averages","Highest half- hourly average","Monthly mean of  daily averages","Highest daily average"]
[null,null,null,null,null,null,null,null,null,"A5","Jan"]
[null,null,null,null,null,null,null,null,null,null,"Feb"]
[null,null,null,null,null,null,null,null,null,null,"Mar"]
[null,null,null,null,null,null,null,null,null,null,"Apr"]
[null,null,null,null,null,null,null,null,null,null,"May"]
[null,null,null,null,null,null,null,null,null,null,"Jun"]
[null,null,null,null,null,null,null,null,null,null,"Jul"]
[null,null,null,null,null,null,null,null,null,null,"Aug"]
[null,null,null,null,null,null,null,null,null,null,"Sep"]
[null,null,null,null,null,null,null,null,null,null,"Oct"]
[null,null,null,null,null,null,null,null,null,null,"Nov"]
[null,null,null,null,null,null,null,null,null,null,"Dec"]
[null,null,null,null,null,null,null,null,null,null,"Annual",{"$f":"AVERAGE(L67:L78)","v":"#DIV/0!"},{"$f":"MAX(M67:M78)","v":0},{"$f":"AVERAGE(N67:N78)","v":"#DIV/0!"},{"$f":"MAX(O67:O78)","v":0}]

{"sheet":"CO 95% 10 min","index":19,"n_rows":80,"n_cols":19,"rows_kept":80,"cut":false,"hidden":false,"merged":[[22,10,34,10],[37,10,49,10],[48,0,48,7],[49,0,52,7],[52,10,64,10],[67,10,79,10],[4,18,8,20],[5,1,5,4],[5,5,5,7],[5,10,5,16],[7,10,19,10],[10,18,12,20],[13,18,16,20]]}
[{"$f":"+'Cover Page'!$B$29","v":"Annual Performance Report 2025"},null,null,null,{"$f":"+'Cover Page'!$B$33","v":"Newhaven Energy Recovery Facility "}]
[]
["Monitoring of Carbon Monoxide (10-minute avg)",null,null,null,"Whole Installation",null,null,"See  Notes in Cell S3",null,{"$f":"+A3","v":"Monitoring of Carbon Monoxide (10-minute avg)"},null,null,null,null,"Per Combustion Line",null,"Notes:",null,"Notes:"]
[]
[null,null,null,null,null,null,null,null,null,null,null,null,null,null,null,null,null,null,"User to add logic to complete Whole installation, Table A5:H18. From the data in Per Combustion Line, Table K6:Q79, subject to No. of lines installed"]
[{"$f":"+'Cover Page'!C39","v":2025},"10-minute Reference Periods",null,null,null,"Daily Reference Periods"]
["mg/Nm3","95%ile 10-min avg CO ELV","Highest daily 95%ile 10-min average","Monthly mean of 10-min averages","Highest 10-min average","Daily CO ELV","Monthly mean of  daily averages","Highest daily average",null,null,{"$f":"+A6","v":2025},"mg/Nm3","Highest daily 95%ile 10-min average","Monthly mean of 10-min averages","Highest 10-min average","Monthly mean of  daily averages","Highest daily average"]
["Jan",150.0,{"$f":"MAX(M8,M23)","v":22.37},{"$f":"AVERAGE(N8,N23)","v":10.295},{"$f":"MAX(O8,O23)","v":271.75},50.0,{"$f":"AVERAGE(P8,P23)","v":10.24},{"$f":"MAX(Q8,Q23)","v":16.93},null,null,"A1","Jan",11.52,5.53,271.75,5.45,7.44]
["Feb",{"$f":"+B8","v":150},22.98,10.02,247.26,{"$f":"+F8","v":50},9.985,19.91,null,null,null,"Feb",10.87,5.15,230.59,5.11,7.45]
["Mar",150,23.94,9.545,632.58,50,9.425,17.46,null,null,null,"Mar",12.97,5.25,632.58,5.05,10.13,null,"Whole Installation table A5:H18:"]
["Apr",150,22.15,8.995,284.91,50,8.945,15.54,null,null,null,"Apr",15.27,5.3,284.91,5.26,9.47,null,"Mean: for 10-min and daily periods use average of all operational combustion lines."]
["May",150,31.8,12.205,2508.39,50,12.17,22.45,null,null,null,"May",29.48,9.63,2508.39,9.6,22.45]
["Jun",150,47.05,14.755,1893.64,50,14.75,32.74,null,null,null,"Jun",47.05,11.24,351.63,11.24,23.24]
["Jul",150,60.44,14.375,2283.67,50,14.34,35.13,null,null,null,"Jul",60.44,12.85,2283.67,12.81,35.13,null,"Maximum: for 10-min and daily periods use the highest of all operational combustion lines in any month."]
["Aug",150,113.44,18.135,4096.63,50,18.13,42.65,null,null,null,"Aug",113.44,14.79,4096.63,14.82,42.65]
["Sep",150,47.95,16.405,4740.26,50,15.275,25.64,null,null,null,"Sep",47.95,12.61,2426.53,11.67,17.94]
["Oct",150,44.07,15.72,2194.35,50,15.685,36.87,null,null,null,"Oct",29.25,12.61,1074.73,12.57,28.19]
["Nov",150,43.61,16.54,2680.68,50,16.645,36.98,null,null,null,"Nov",30.81,12.84,2680.68,13.04,36.98]
["Dec",150,35.24,12.64,1480.4,50,12.6,23.86,null,null,null,"Dec",26.03,9.34,713.52,9.31,15.92]
[null,null,null,null,null,null,null,null,null,null,null,"Annual",{"$f":"AVERAGE(M8:M19)","v":36.25666667},9.761666667,{"$f":"MAX(O8:O19)","v":4096.63},{"$f":"AVERAGE(P8:P19)","v":9.660833333},{"$f":"MAX(Q8:Q19)","v":42.65}]
[]
[null,null,null,null,null,null,null,null,null,null,{"$f":"+A6","v":2025},"mg/Nm3","Highest daily 95%ile 10-min average","Monthly mean of 10-min averages","Highest 10-min average","Monthly mean of  daily averages","Highest daily average"]
[null,null,null,null,null,null,null,null,null,null,"A2","Jan",22.37,15.06,144.8,15.03,16.93]
[null,null,null,null,null,null,null,null,null,null,null,"Feb",22.98,14.89,247.26,14.86,19.91]
[null,null,null,null,null,null,null,null,null,null,null,"Mar",23.94,13.84,589.18,13.8,17.46]
[null,null,null,null,null,null,null,null,null,null,null,"Apr",22.15,12.69,254.52,12.63,15.54]
[null,null,null,null,null,null,null,null,null,null,null,"May",31.8,14.78,255.8,14.74,22.07]
[null,null,null,null,null,null,null,null,null,null,null,"Jun",37.86,18.27,1893.64,18.26,32.74]
[null,null,null,null,null,null,null,null,null,null,null,"Jul",30.57,15.9,728.71,15.87,27.31]
[null,null,null,null,null,null,null,null,null,null,null,"Aug",58.82,21.48,2063.92,21.44,31.39]
[null,null,null,null,null,null,null,null,null,null,null,"Sep",35.62,20.2,4740.26,18.88,25.64]
[null,null,null,null,null,null,null,null,null,null,null,"Oct",44.07,18.83,2194.35,18.8,36.87]
[null,null,null,null,null,null,null,null,null,null,null,"Nov",43.61,20.24,1133.46,20.25,27.35]
[null,null,null,null,null,null,null,null,null,null,null,"Dec",35.24,15.94,1480.4,15.89,23.86]
[null,null,null,null,null,null,null,null,null,null,null,"Annual",{"$f":"AVERAGE(M23:M34)","v":34.08583333},16.84333333,{"$f":"MAX(O23:O34)","v":4740.26},{"$f":"AVERAGE(P23:P34)","v":16.70416667},{"$f":"MAX(Q23:Q34)","v":36.87}]
[]
[null,null,null,null,null,null,null,null,null,null,{"$f":"+A6","v":2025},"mg/Nm3","Highest daily 95%ile 10-min average","Monthly mean of 10-min averages","Highest 10-min average","Monthly mean of  daily averages","Highest daily average"]
[null,null,null,null,null,null,null,null,null,null,"A3","Jan"]
[null,null,null,null,null,null,null,null,null,null,null,"Feb"]
[null,null,null,null,null,null,null,null,null,null,null,"Mar"]
[null,null,null,null,null,null,null,null,null,null,null,"Apr"]
[null,null,null,null,null,null,null,null,null,null,null,"May"]
[null,null,null,null,null,null,null,null,null,null,null,"Jun"]
[null,null,null,null,null,null,null,null,null,null,null,"Jul"]
[null,null,null,null,null,null,null,null,null,null,null,"Aug"]
[null,null,null,null,null,null,null,null,null,null,null,"Sep"]
[null,null,null,null,null,null,null,null,null,null,null,"Oct"]
[null,null,null,null,null,null,null,null,null,null,null,"Nov"]
["Comments :",null,null,null,null,null,null,null,null,null,null,"Dec"]
["Environment Agency explanatory note: The 10-minute average ELV is based on the “95th percentile”. In this case this means that 95% of the 10 minute averages in the relevant 24-hour period (i.e. 137) must be below 150 mg/Nm3, and 5% (i.e. 7) are allowed to be any value above 150 mg/Nm3. Whilst we expect operators to minimise CO emissions at all times, it is perfectly acceptable for the value of the maximum 10-minute average to be above 150 mg/Nm3, provided the 95th percentile ELV has been met for that period. ",null,null,null,null,null,null,null,null,null,null,"Annual",{"$f":"AVERAGE(M38:M49)","v":"#DIV/0!"},null,{"$f":"MAX(O38:O49)","v":0},{"$f":"AVERAGE(P38:P49)","v":"#DIV/0!"},{"$f":"MAX(Q38:Q49)","v":0}]
[]
[null,null,null,null,null,null,null,null,null,null,{"$f":"+A6","v":2025},"mg/Nm3","Highest daily 95%ile 10-min average","Monthly mean of 10-min averages","Highest 10-min average","Monthly mean of  daily averages","Highest daily average"]
[null,null,null,null,null,null,null,null,null,null,"A4","Jan"]
[null,null,null,null,null,null,null,null,null,null,null,"Feb"]
[null,null,null,null,null,null,null,null,null,null,null,"Mar"]
[null,null,null,null,null,null,null,null,null,null,null,"Apr"]
[null,null,null,null,null,null,null,null,null,null,null,"May"]
[null,null,null,null,null,null,null,null,null,null,null,"Jun"]
[null,null,null,null,null,null,null,null,null,null,null,"Jul"]
[null,null,null,null,null,null,null,null,null,null,null,"Aug"]
[null,null,null,null,null,null,null,null,null,null,null,"Sep"]
[null,null,null,null,null,null,null,null,null,null,null,"Oct"]
[null,null,null,null,null,null,null,null,null,null,null,"Nov"]
[null,null,null,null,null,null,null,null,null,null,null,"Dec"]
[null,null,null,null,null,null,null,null,null,null,null,"Annual",{"$f":"AVERAGE(M53:M64)","v":"#DIV/0!"},null,{"$f":"MAX(O53:O64)","v":0},{"$f":"AVERAGE(P53:P64)","v":"#DIV/0!"},{"$f":"MAX(Q53:Q64)","v":0}]
[]
[null,null,null,null,null,null,null,null,null,null,{"$f":"+A6","v":2025},"mg/Nm3","95%ile 10-min avg maximum","Monthly CO 10-min avg mean","10-min avg maximum","Monthly daily mean","Monthly daily maximum"]
[null,null,null,null,null,null,null,null,null,null,"A5","Jan"]
[null,null,null,null,null,null,null,null,null,null,null,"Feb"]
[null,null,null,null,null,null,null,null,null,null,null,"Mar"]
[null,null,null,null,null,null,null,null,null,null,null,"Apr"]
[null,null,null,null,null,null,null,null,null,null,null,"May"]
[null,null,null,null,null,null,null,null,null,null,null,"Jun"]
[null,null,null,null,null,null,null,null,null,null,null,"Jul"]
[null,null,null,null,null,null,null,null,null,null,null,"Aug"]
[null,null,null,null,null,null,null,null,null,null,null,"Sep"]
[null,null,null,null,null,null,null,null,null,null,null,"Oct"]
[null,null,null,null,null,null,null,null,null,null,null,"Nov"]
[null,null,null,null,null,null,null,null,null,null,null,"Dec"]
[null,null,null,null,null,null,null,null,null,null,null,"Annual",{"$f":"AVERAGE(M68:M79)","v":"#DIV/0!"},null,{"$f":"MAX(O68:O79)","v":0},{"$f":"AVERAGE(P68:P79)","v":"#DIV/0!"},{"$f":"MAX(Q68:Q79)","v":0}]

{"sheet":"NH3","index":20,"n_rows":79,"n_cols":17,"rows_kept":79,"cut":false,"hidden":false,"merged":[[6,9,18,9],[21,9,33,9],[36,9,48,9],[47,0,47,6],[48,0,51,6],[51,9,63,9],[66,9,78,9],[3,16,7,18],[4,1,4,3],[4,4,4,6],[4,9,4,14],[9,16,11,18],[12,16,15,18],[18,4,18,6]]}
[{"$f":"+'Cover Page'!$B$29","v":"Annual Performance Report 2025"},null,null,null,{"$f":"+'Cover Page'!$B$33","v":"Newhaven Energy Recovery Facility "}]
[]
["Monitoring of Ammnonia emissions ",null,null,"Whole Installation",null,null,"See  Notes in Cell Q3",null,null,{"$f":"+A3","v":"Monitoring of Ammnonia emissions "},null,null,null,"Per Combustion Line",null,null,"Notes:"]
[null,null,null,null,null,null,null,null,null,null,null,null,null,null,null,null,"User to add logic to complete Whole installation, Table A5:G18. From the data in Per Combustion Line, Table J6:O79, subject to No. of lines installed"]
[{"$f":"+'Cover Page'!C39","v":2025},"1/2 Hourly Reference Periods",null,null,"Daily Reference Periods"]
["mg/Nm3","1/2 hourly NH3 ELV","Monthly mean of half-hourly averages","Highest half- hourly average","Daily NH3 ELV","Monthly mean of  daily averages","Highest daily average",null,null,{"$f":"+A5","v":2025},"mg/Nm3","Monthly mean of half-hourly averages","Highest half- hourly average","Monthly mean of  daily averages","Highest daily average"]
["Jan","None",{"$f":"AVERAGE(L7,L22)","v":0.495},{"$f":"MAX(M7,M22)","v":2.43},15.0,{"$f":"AVERAGE(N7,N22)","v":0.46},{"$f":"MAX(O7,O22)","v":1.02},null,null,"A1","Jan",0.32,2.43,0.28,0.53]
["Feb",{"$f":"+B7","v":"None"},0.4,2.49,15.0,0.37,0.88,null,null,null,"Feb",0.26,2.27,0.23,0.44]
["Mar","None",0.43,5.99,15.0,0.375,1.3,null,null,null,"Mar",0.37,5.99,0.29,1.3,null,"Whole Installation table A5:G18:"]
["Apr","None",0.37,6.56,15.0,0.335,0.94,null,null,null,"Apr",0.3,1.34,0.27,0.56,null,"Mean: for 1/2 hourly and daily periods calculate mean of values across all operational combustion lines for the month"]
["May","None",0.73,2.64,15.0,0.66,1.6,null,null,null,"May",0.68,2.64,0.62,1.6]
["Jun","None",0.89,3.43,15.0,0.86,1.46,null,null,null,"Jun",0.76,1.93,0.73,1.14]
["Jul","None",0.885,5.06,15.0,0.85,1.65,null,null,null,"Jul",0.69,5.06,0.65,1.65,null,"Maximum: for 1/2 hourly and daily periods use the highest value across all operational combustion lines for the month"]
["Aug","None",0.975,10.35,15.0,0.945,1.83,null,null,null,"Aug",0.69,10.35,0.66,1.52]
["Sep","None",0.92,14.07,15.0,0.85,1.57,null,null,null,"Sep",0.65,10.68,0.6,1.19]
["Oct","None",0.805,10.72,15.0,0.775,1.9,null,null,null,"Oct",0.56,5.09,0.53,0.87]
["Nov","None",0.895,9.49,15.0,0.855,2.88,null,null,null,"Nov",0.57,9.49,0.52,1.12]
["Dec","None",0.665,3.09,15.0,0.635,1.48,null,null,null,"Dec",0.46,1.78,0.43,0.69]
[null,null,null,null,null,null,null,null,null,null,"Annual",{"$f":"AVERAGE(L7:L18)","v":0.5258333333},{"$f":"MAX(M7:M18)","v":10.68},{"$f":"AVERAGE(N7:N18)","v":0.4841666667},{"$f":"MAX(O7:O18)","v":1.65}]
[]
[null,null,null,null,null,null,null,null,null,{"$f":"+A5","v":2025},"mg/Nm3","Monthly mean of half-hourly averages","Highest half- hourly average","Monthly mean of  daily averages","Highest daily average"]
[null,null,null,null,null,null,null,null,null,"A2","Jan",0.67,2.33,0.64,1.02]
[null,null,null,null,null,null,null,null,null,null,"Feb",0.54,2.49,0.51,0.88]
[null,null,null,null,null,null,null,null,null,null,"Mar",0.49,3.89,0.46,1.07]
[null,null,null,null,null,null,null,null,null,null,"Apr",0.44,6.56,0.4,0.94]
[null,null,null,null,null,null,null,null,null,null,"May",0.78,2.42,0.7,1.06]
[null,null,null,null,null,null,null,null,null,null,"Jun",1.02,3.43,0.99,1.46]
[null,null,null,null,null,null,null,null,null,null,"Jul",1.08,2.43,1.05,1.36]
[null,null,null,null,null,null,null,null,null,null,"Aug",1.26,5.03,1.23,1.83]
[null,null,null,null,null,null,null,null,null,null,"Sep",1.19,14.07,1.1,1.57]
[null,null,null,null,null,null,null,null,null,null,"Oct",1.05,10.72,1.02,1.9]
[null,null,null,null,null,null,null,null,null,null,"Nov",1.22,8.91,1.19,2.88]
[null,null,null,null,null,null,null,null,null,null,"Dec",0.87,3.09,0.84,1.48]
[null,null,null,null,null,null,null,null,null,null,"Annual",{"$f":"AVERAGE(L22:L33)","v":0.8841666667},{"$f":"MAX(M22:M33)","v":14.07},{"$f":"AVERAGE(N22:N33)","v":0.8441666667},{"$f":"MAX(O22:O33)","v":2.88}]
[]
[null,null,null,null,null,null,null,null,null,{"$f":"+A5","v":2025},"mg/Nm3","Monthly mean of half-hourly averages","Highest half- hourly average","Monthly mean of  daily averages","Highest daily average"]
[null,null,null,null,null,null,null,null,null,"A3","Jan"]
[null,null,null,null,null,null,null,null,null,null,"Feb"]
[null,null,null,null,null,null,null,null,null,null,"Mar"]
[null,null,null,null,null,null,null,null,null,null,"Apr"]
[null,null,null,null,null,null,null,null,null,null,"May"]
[null,null,null,null,null,null,null,null,null,null,"Jun"]
[null,null,null,null,null,null,null,null,null,null,"Jul"]
[null,null,null,null,null,null,null,null,null,null,"Aug"]
[null,null,null,null,null,null,null,null,null,null,"Sep"]
[null,null,null,null,null,null,null,null,null,null,"Oct"]
[null,null,null,null,null,null,null,null,null,null,"Nov"]
["Comments :",null,null,null,null,null,null,null,null,null,"Dec"]
["An indicated ELV value of zero in the table above means that no ammonia limit is/was set in the permit.  ",null,null,null,null,null,null,null,null,null,"Annual",{"$f":"AVERAGE(L37:L48)","v":"#DIV/0!"},{"$f":"MAX(M37:M48)","v":0},{"$f":"AVERAGE(N37:N48)","v":"#DIV/0!"},{"$f":"MAX(O37:O48)","v":0}]
[]
[null,null,null,null,null,null,null,null,null,{"$f":"+A5","v":2025},"mg/Nm3","Monthly mean of half-hourly averages","Highest half- hourly average","Monthly mean of  daily averages","Highest daily average"]
[null,null,null,null,null,null,null,null,null,"A4","Jan"]
[null,null,null,null,null,null,null,null,null,null,"Feb"]
[null,null,null,null,null,null,null,null,null,null,"Mar"]
[null,null,null,null,null,null,null,null,null,null,"Apr"]
[null,null,null,null,null,null,null,null,null,null,"May"]
[null,null,null,null,null,null,null,null,null,null,"Jun"]
[null,null,null,null,null,null,null,null,null,null,"Jul"]
[null,null,null,null,null,null,null,null,null,null,"Aug"]
[null,null,null,null,null,null,null,null,null,null,"Sep"]
[null,null,null,null,null,null,null,null,null,null,"Oct"]
[null,null,null,null,null,null,null,null,null,null,"Nov"]
[null,null,null,null,null,null,null,null,null,null,"Dec"]
[null,null,null,null,null,null,null,null,null,null,"Annual",{"$f":"AVERAGE(L52:L63)","v":"#DIV/0!"},{"$f":"MAX(M52:M63)","v":0},{"$f":"AVERAGE(N52:N63)","v":"#DIV/0!"},{"$f":"MAX(O52:O63)","v":0}]
[]
[null,null,null,null,null,null,null,null,null,{"$f":"+A5","v":2025},"mg/Nm3","Monthly mean of half-hourly averages","Highest half- hourly average","Monthly mean of  daily averages","Highest daily average"]
[null,null,null,null,null,null,null,null,null,"A5","Jan"]
[null,null,null,null,null,null,null,null,null,null,"Feb"]
[null,null,null,null,null,null,null,null,null,null,"Mar"]
[null,null,null,null,null,null,null,null,null,null,"Apr"]
[null,null,null,null,null,null,null,null,null,null,"May"]
[null,null,null,null,null,null,null,null,null,null,"Jun"]
[null,null,null,null,null,null,null,null,null,null,"Jul"]
[null,null,null,null,null,null,null,null,null,null,"Aug"]
[null,null,null,null,null,null,null,null,null,null,"Sep"]
[null,null,null,null,null,null,null,null,null,null,"Oct"]
[null,null,null,null,null,null,null,null,null,null,"Nov"]
[null,null,null,null,null,null,null,null,null,null,"Dec"]
[null,null,null,null,null,null,null,null,null,null,"Annual",{"$f":"AVERAGE(L67:L78)","v":"#DIV/0!"},{"$f":"MAX(M67:M78)","v":0},{"$f":"AVERAGE(N67:N78)","v":"#DIV/0!"},{"$f":"MAX(O67:O78)","v":0}]

{"sheet":"Template changes log","index":21,"n_rows":23,"n_cols":3,"rows_kept":23,"cut":false,"hidden":false,"merged":[]}
["Log of changes to template (Environment Agency use only)"]
[]
["Date","Description of change","New version number and date"]
["2024-01-16","Air (periodic) tab: corrected default O2 reference from 6 to 11% ","Version 23.5a (for incinerators) - 16/01/2024"]
["2024-09-23","Air (periodic) tab: corrected symbol for Thallium to Tl"]
["2024-09-23","Air (periodic) tab: removed last year's references to different emission limit values applying from 03/12/23 and updated all relevant ELVs"]
["2024-09-23","Tabs for continuously monitored pollutants (HCl, SO2 etc.): changed terminology in table headings to improve clarity"]
["2024-09-23","Tabs for continuously monitored pollutants (HCl, SO2 etc.): removed last year's references to different emission limit values applying from 03/12/23 and updated all relevant ELVs"]
["2024-09-23","Perf 1 tab: updated formula for water usage to report m3 rather than litres and corrected error with formula copying operator name"]
["2024-09-23","Operational Summary tab: table added on start-ups and shut-downs"]
["2024-09-23","Operational Summary tab: table added on dioxins and mercury protocols"]
["2024-09-23","Operational Summary tab: table added on AST, QAL 2 and calibration functions"]
["2024-09-23","CO2 N2O tab: various changes made to notes to reflect the fact that most plants should now have calibrated CEMS and flow meters + some have C14 samplers and more up to date industry data","Version 24a (for incinerators) - 23/09/24"]
["2024-11-08","CO2 N2O tab: Changed the N2O CO2 equivalence factor from 298 to 265 in line with recently updated government greenhouse gas figures: https://www.gov.uk/government/publications/greenhouse-gas-reporting-conversion-factors-2024"]
["2024-11-08","CO2 N2O tab: Added an additional requirement for municipal EfW plants to state the yearly average biogenic percentage of the waste by mass, and reference to a document which sets out a methodology for calculating NCV of waste from the results of C14 sampling."]
["2024-11-08","Permit Compliance tab: Two additional columns added + explanatory notes to the table entitled \"Summary of non-compliances under the permit\" to allow CCS scores to be stated where relevant. "]
["2024-11-08","Residue Quality tab: Note added explaining application of TOC and LOI limits and asking operators to report both metrics where measured. ","Version 24.1a (for incinerators) - 08/11/24"]
["2024-11-27","Operational Summary tab: table added on start-ups and shut-downs","Version 24.2a (for incinerators) - 27/11/24"]
["2025-11-27","Cover Page: Print as PDF and Print Report and pdf buttons deleted and blank columns removed; contents page deleted","Version 25.1a (for incinerators) - 27/11/25"]
["2025-11-27","Residue Quality tab renamed to \"Residues\", and Summary of residue handling table moved from Operational Summary tab to Residues tab."]
["2025-11-27","Various changes made to the Operational Data tab including\n•\tReformatting of the rows under the Operational data heading (Rows 3-8) to make it clearer what information is required. \n•\tAmendment of the rows under the Energy Usage / Export heading (Rows 26-32) to calculate an “indicative parasitic load” (now excluding energy imported)\n•\tAmendment of the unit for gas usage from cubic feet to cubic metres (Row 50) \n•\tSome amendments to the first 2 notes and other minor edits\n•\tDeleted \"Overall Availability, mean avg. of all lines, hrs\" row"]
["2025-11-27","Operational Summary tab: Note added requiring all emergency shut-downs be listed, irrespective of whether or not they were reportable. "]
["2025-11-27","CO2 N2O tab: Note added to ask operators to ensure that relevant data reported here matches that which will be submitted under the Pollution Inventory"]